Beneficiary,Transaction Date,TransNo,Procurement,Purpose of Spend(T),Organisation,Amount
1 AND 1 IONOS LTD,10/02/2022,31108537,"Supplies, Services & Other Expenses",Computer Hardware,Greater Manchester Combined Authority ,47.16
A.LEWIS AND SONS LTD,28/03/2022,31111051,Premises Related Expenditure,Responsive Repairs & Maintenance,Greater Manchester Combined Authority ,40.2
ABRATAX - MTD,22/03/2022,31108459,"Supplies, Services & Other Expenses",Computer Software,Greater Manchester Combined Authority ,244.8
ACTRONICS LTD,03/03/2022,31110862,Transport Related Expenditure,Repairs and Maintenance - Transport,Greater Manchester Combined Authority ,48
ADEXA.CO.UK,01/02/2022,31108029,Premises Related Expenditure,Responsive Repairs & Maintenance,Greater Manchester Combined Authority ,324
ADEXA.CO.UK,10/03/2022,31110864,Premises Related Expenditure,Responsive Repairs & Maintenance,Greater Manchester Combined Authority ,190.8
Akzonobel,24/03/2022,31108524,Premises Related Expenditure,Responsive Repairs & Maintenance,Greater Manchester Combined Authority ,10.8
ALDI 22 773,28/03/2022,31097918,"Supplies, Services & Other Expenses",Subsistence,Greater Manchester Combined Authority ,22.4
ALDI 34 773,16/03/2022,31108555,"Supplies, Services & Other Expenses",Subsistence,Greater Manchester Combined Authority ,15.16
ALDI 79 773,28/02/2022,31111010,"Supplies, Services & Other Expenses",Subsistence,Greater Manchester Combined Authority ,2.25
ALDI 79 773,28/02/2022,31111038,"Supplies, Services & Other Expenses",Subsistence,Greater Manchester Combined Authority ,165.45
ALDI STORES,19/01/2022,31108044,Premises Related Expenditure,Responsive Repairs & Maintenance,Greater Manchester Combined Authority ,1.9
ALLIANCE TRANSPORT TEC,30/03/2022,31111984,Transport Related Expenditure,Repairs and Maintenance - Transport,Greater Manchester Combined Authority ,54
ALTEC SALES & SERVICE,30/03/2022,31112124,Transport Related Expenditure,Repairs and Maintenance - Transport,Greater Manchester Combined Authority ,40.62
Amazon Prime 1722K0XE5,17/03/2022,31108706,"Supplies, Services & Other Expenses",Periodicals & Magazines,Greater Manchester Combined Authority ,7.99
Amazon Prime 2L4I63B54,23/03/2022,31112046,"Supplies, Services & Other Expenses",Periodicals & Magazines,Greater Manchester Combined Authority ,7.99
Amazon Prime 3R7BC9FP5,27/01/2022,31108028,"Supplies, Services & Other Expenses",Periodicals & Magazines,Greater Manchester Combined Authority ,7.99
Amazon Prime 6Y6VL32V5,23/03/2022,31111026,"Supplies, Services & Other Expenses",Periodicals & Magazines,Greater Manchester Combined Authority ,7.99
Amazon Prime C64369HU5,05/01/2022,31104956,Premises Related Expenditure,Responsive Repairs & Maintenance,Greater Manchester Combined Authority ,0.99
Amazon Prime LF0TY12L5,31/01/2022,31104916,Premises Related Expenditure,Responsive Repairs & Maintenance,Greater Manchester Combined Authority ,7.99
Amazon.co.uk 147UG4HP5,21/01/2022,31108494,Transport Related Expenditure,Repairs and Maintenance - Transport,Greater Manchester Combined Authority ,28.54
Amazon.co.uk 180NR6675,19/01/2022,31108125,"Supplies, Services & Other Expenses",Stationery,Greater Manchester Combined Authority ,2.78
Amazon.co.uk 1M4MN65X5,27/01/2022,31108087,"Supplies, Services & Other Expenses",Stationery,Greater Manchester Combined Authority ,4
Amazon.co.uk 1V6H99IF5,21/01/2022,31108628,Transport Related Expenditure,Repairs and Maintenance - Transport,Greater Manchester Combined Authority ,29.2
Amazon.co.uk 223N623A5,19/03/2022,31108118,"Supplies, Services & Other Expenses",Stationery,Greater Manchester Combined Authority ,10.91
Amazon.co.uk 2689T1FP4,21/01/2022,31108644,Transport Related Expenditure,Repairs and Maintenance - Transport,Greater Manchester Combined Authority ,12.41
Amazon.co.uk 280BD2EO4,28/03/2022,31097813,Premises Related Expenditure,Fixtures & Fittings,Greater Manchester Combined Authority ,49.99
Amazon.co.uk 285GJ1AQ4,28/03/2022,31097711,Premises Related Expenditure,Fixtures & Fittings,Greater Manchester Combined Authority ,49.99
Amazon.co.uk 2L1E98JC4,02/03/2022,31110916,"Supplies, Services & Other Expenses",Stationery,Greater Manchester Combined Authority ,34.99
Amazon.co.uk 2L5SB51Q4,22/03/2022,31110902,"Supplies, Services & Other Expenses",Stationery,Greater Manchester Combined Authority ,20.8
Amazon.co.uk 2L8DF5634,30/03/2022,31112076,Transport Related Expenditure,Repairs and Maintenance - Transport,Greater Manchester Combined Authority ,24.35
Amazon.co.uk 2L8HL8K34,28/03/2022,31112143,Premises Related Expenditure,Responsive Repairs & Maintenance,Greater Manchester Combined Authority ,218.43
Amazon.co.uk 2R1M300B4,30/03/2022,31112037,Transport Related Expenditure,Repairs and Maintenance - Transport,Greater Manchester Combined Authority ,59.95
Amazon.co.uk 2R46N2RV4,30/03/2022,31111964,Transport Related Expenditure,Repairs and Maintenance - Transport,Greater Manchester Combined Authority ,12.95
Amazon.co.uk 2R5U31NA4,30/03/2022,31112147,Transport Related Expenditure,Repairs and Maintenance - Transport,Greater Manchester Combined Authority ,27.66
Amazon.co.uk 2R75O65O4,30/03/2022,31112150,Transport Related Expenditure,Repairs and Maintenance - Transport,Greater Manchester Combined Authority ,22.85
Amazon.co.uk 2X42R5SG4,30/03/2022,31112149,Transport Related Expenditure,Repairs and Maintenance - Transport,Greater Manchester Combined Authority ,4.25
Amazon.co.uk 3P89G16D5,24/01/2022,31108104,Transport Related Expenditure,Repairs and Maintenance - Transport,Greater Manchester Combined Authority ,6.15
Amazon.co.uk 4B63M3Y95,13/02/2022,31108567,Transport Related Expenditure,Repairs and Maintenance - Transport,Greater Manchester Combined Authority ,18
Amazon.co.uk 6D8Y16LQ5,05/03/2022,31108625,"Supplies, Services & Other Expenses",Office Equipment,Greater Manchester Combined Authority ,48.34
Amazon.co.uk 753NW7055,03/02/2022,31105055,"Supplies, Services & Other Expenses",Stationery,Greater Manchester Combined Authority ,166.92
Amazon.co.uk 7L0VV7ET5,13/02/2022,31108502,Transport Related Expenditure,Repairs and Maintenance - Transport,Greater Manchester Combined Authority ,32
Amazon.co.uk 897G93235,02/03/2022,31110808,"Supplies, Services & Other Expenses",Stationery,Greater Manchester Combined Authority ,16.14
Amazon.co.uk 958RY2W35,11/02/2022,31108576,"Supplies, Services & Other Expenses",Computer Hardware,Greater Manchester Combined Authority ,208.08
Amazon.co.uk 9B1GE0KV5,24/01/2022,31108192,Transport Related Expenditure,Repairs and Maintenance - Transport,Greater Manchester Combined Authority ,24.9
Amazon.co.uk 9D9Z75EB5,02/03/2022,31110819,"Supplies, Services & Other Expenses",Stationery,Greater Manchester Combined Authority ,16.14
Amazon.co.uk A39585BB5,13/02/2022,31108440,Transport Related Expenditure,Repairs and Maintenance - Transport,Greater Manchester Combined Authority ,53
Amazon.co.uk AA4GQ8SB5,24/01/2022,31108131,Transport Related Expenditure,Repairs and Maintenance - Transport,Greater Manchester Combined Authority ,19.8
Amazon.co.uk B23CF1RX5,21/01/2022,31108575,Transport Related Expenditure,Repairs and Maintenance - Transport,Greater Manchester Combined Authority ,25.81
Amazon.co.uk B88FV48G5,04/02/2022,31108503,Transport Related Expenditure,Repairs and Maintenance - Transport,Greater Manchester Combined Authority ,15.6
Amazon.co.uk CJ6S83J55,03/03/2022,31110989,Transport Related Expenditure,Repairs and Maintenance - Transport,Greater Manchester Combined Authority ,41.68
Amazon.co.uk CY55K6PI5,03/03/2022,31110894,Transport Related Expenditure,Repairs and Maintenance - Transport,Greater Manchester Combined Authority ,20.39
Amazon.co.uk ET2OO2JB5,21/01/2022,31108506,Premises Related Expenditure,Fixtures & Fittings,Greater Manchester Combined Authority ,14.83
Amazon.co.uk GR9ML0G55,19/01/2022,31108178,"Supplies, Services & Other Expenses",Stationery,Greater Manchester Combined Authority ,8.35
Amazon.co.uk GW33G0835,01/02/2022,31104871,"Supplies, Services & Other Expenses",Stationery,Greater Manchester Combined Authority ,29.95
Amazon.co.uk H320R4665,19/01/2022,31108135,"Supplies, Services & Other Expenses",Stationery,Greater Manchester Combined Authority ,2.78
Amazon.co.uk HJ2IW1VK5,27/01/2022,31108670,Transport Related Expenditure,Repairs and Maintenance - Transport,Greater Manchester Combined Authority ,50.57
Amazon.co.uk HV6EN9Q55,03/03/2022,31110877,Transport Related Expenditure,Repairs and Maintenance - Transport,Greater Manchester Combined Authority ,26.8
Amazon.co.uk I50353XZ5,30/03/2022,31111000,"Supplies, Services & Other Expenses",Stationery,Greater Manchester Combined Authority ,20.98
Amazon.co.uk KB33Z8MA5,03/02/2022,31108542,"Supplies, Services & Other Expenses",Waste Education Materials,Greater Manchester Combined Authority ,38
Amazon.co.uk KW8G08SJ5,21/01/2022,31108525,Transport Related Expenditure,Repairs and Maintenance - Transport,Greater Manchester Combined Authority ,45.49
Amazon.co.uk L97TN0L65,24/03/2022,31108568,"Supplies, Services & Other Expenses",Stationery,Greater Manchester Combined Authority ,33.98
Amazon.co.uk LP1M721F5,03/02/2022,31108173,"Supplies, Services & Other Expenses",Stationery,Greater Manchester Combined Authority ,21.61
Amazon.co.uk ML8IP5TT5,03/03/2022,31110983,Transport Related Expenditure,Repairs and Maintenance - Transport,Greater Manchester Combined Authority ,32.05
Amazon.co.uk MU78S8G65,24/01/2022,31108466,"Supplies, Services & Other Expenses",Stationery,Greater Manchester Combined Authority ,18.05
Amazon.co.uk NB9DS3IV5,30/03/2022,31108171,"Supplies, Services & Other Expenses",Kitchen Equipment,Greater Manchester Combined Authority ,119.99
Amazon.co.uk NF8HB3HU5,03/03/2022,31110802,Transport Related Expenditure,Repairs and Maintenance - Transport,Greater Manchester Combined Authority ,9.95
Amazon.co.uk NI2RF8XC5,28/02/2022,31110837,"Supplies, Services & Other Expenses",Subsistence,Greater Manchester Combined Authority ,14.6
Amazon.co.uk NL5ZD8ZS5,27/01/2022,31108113,"Supplies, Services & Other Expenses",Stationery,Greater Manchester Combined Authority ,12.34
Amazon.co.uk O03YG8WP5,30/03/2022,31104926,"Supplies, Services & Other Expenses",Kitchen Equipment,Greater Manchester Combined Authority ,99.99
Amazon.co.uk O976T8LX5,03/02/2022,31108703,Indirect Employee Allowances,Other Training Expenses,Greater Manchester Combined Authority ,246.36
Amazon.co.uk R59QY1D95,19/01/2022,31108057,"Supplies, Services & Other Expenses",Stationery,Greater Manchester Combined Authority ,35.99
Amazon.co.uk RG77469U5,02/03/2022,31111027,"Supplies, Services & Other Expenses",Stationery,Greater Manchester Combined Authority ,16.14
Amazon.co.uk RO0922J85,05/01/2022,31101462,Premises Related Expenditure,Responsive Repairs & Maintenance,Greater Manchester Combined Authority ,5
Amazon.co.uk SD8L15EU5,03/03/2022,31111035,Transport Related Expenditure,Repairs and Maintenance - Transport,Greater Manchester Combined Authority ,10.83
Amazon.co.uk SU8LK2GO5,21/03/2022,31108602,"Supplies, Services & Other Expenses",Stationery,Greater Manchester Combined Authority ,9.62
Amazon.co.uk T07FY7GS5,02/03/2022,31111050,"Supplies, Services & Other Expenses",Stationery,Greater Manchester Combined Authority ,47.99
Amazon.co.uk TQ7BC8HU5,21/01/2022,31108491,Transport Related Expenditure,Repairs and Maintenance - Transport,Greater Manchester Combined Authority ,20.52
Amazon.co.uk U90KC4JP5,28/03/2022,31110799,Premises Related Expenditure,Responsive Repairs & Maintenance,Greater Manchester Combined Authority ,18.98
Amazon.co.uk UH0TX24X5,03/03/2022,31110942,Transport Related Expenditure,Repairs and Maintenance - Transport,Greater Manchester Combined Authority ,3
Amazon.co.uk VT5U12AQ5,03/03/2022,31110858,Transport Related Expenditure,Repairs and Maintenance - Transport,Greater Manchester Combined Authority ,4.3
Amazon.co.uk WC9FN9GX5,24/01/2022,31108090,Transport Related Expenditure,Repairs and Maintenance - Transport,Greater Manchester Combined Authority ,139.95
Amazon.co.uk WD64K3TL5,21/01/2022,31108709,Premises Related Expenditure,Responsive Repairs & Maintenance,Greater Manchester Combined Authority ,229.48
Amazon.co.uk Y33I56N65,24/01/2022,31108194,Transport Related Expenditure,Repairs and Maintenance - Transport,Greater Manchester Combined Authority ,17.95
Amazon.co.uk YD8JG2TU5,21/01/2022,31108420,"Supplies, Services & Other Expenses",Stationery,Greater Manchester Combined Authority ,21.77
Amazon.co.uk Z29AD8735,03/03/2022,31110945,Transport Related Expenditure,Repairs and Maintenance - Transport,Greater Manchester Combined Authority ,27.02
Amazon.co.uk ZB5LK4AZ5,21/01/2022,31108500,"Supplies, Services & Other Expenses",Stationery,Greater Manchester Combined Authority ,17.23
AMFBOWLING.CO.UK,03/02/2022,31108637,"Supplies, Services & Other Expenses",Subsistence,Greater Manchester Combined Authority ,88
AMZ My Tool Shed,05/01/2022,31103247,Premises Related Expenditure,Responsive Repairs & Maintenance,Greater Manchester Combined Authority ,35.24
AMZ R & A Global Suppl,10/01/2022,31105046,"Supplies, Services & Other Expenses",Subsistence,Greater Manchester Combined Authority ,-17.94
AMZ Yuhitech-EU,21/01/2022,31108480,Transport Related Expenditure,Repairs and Maintenance - Transport,Greater Manchester Combined Authority ,-13.59
AMZNMktplace,05/01/2022,31104821,Premises Related Expenditure,Responsive Repairs & Maintenance,Greater Manchester Combined Authority ,9.49
AMZNMktplace,10/01/2022,31104789,Indirect Employee Allowances,Other Training Expenses,Greater Manchester Combined Authority ,229.97
AMZNMktplace,10/01/2022,31105037,"Supplies, Services & Other Expenses",Subsistence,Greater Manchester Combined Authority ,17.94
AMZNMktplace,10/01/2022,31099628,"Supplies, Services & Other Expenses",Subsistence,Greater Manchester Combined Authority ,49.44
AMZNMktplace,19/01/2022,31108019,"Supplies, Services & Other Expenses",Subsistence,Greater Manchester Combined Authority ,499
AMZNMktplace,19/01/2022,31108133,Premises Related Expenditure,Responsive Repairs & Maintenance,Greater Manchester Combined Authority ,36.72
AMZNMktplace,19/01/2022,31108143,Premises Related Expenditure,Responsive Repairs & Maintenance,Greater Manchester Combined Authority ,15.75
AMZNMktplace,19/01/2022,31108129,"Supplies, Services & Other Expenses",Subsistence,Greater Manchester Combined Authority ,33.9
AMZNMktplace,19/01/2022,31108196,"Supplies, Services & Other Expenses",Subsistence,Greater Manchester Combined Authority ,5.36
AMZNMktplace,20/01/2022,31108688,"Supplies, Services & Other Expenses",Subsistence,Greater Manchester Combined Authority ,34.98
AMZNMktplace,21/01/2022,31108547,Transport Related Expenditure,Repairs and Maintenance - Transport,Greater Manchester Combined Authority ,43.98
AMZNMktplace,21/01/2022,31108560,Transport Related Expenditure,Repairs and Maintenance - Transport,Greater Manchester Combined Authority ,8.99
AMZNMktplace,21/01/2022,31108623,Transport Related Expenditure,Repairs and Maintenance - Transport,Greater Manchester Combined Authority ,19.5
AMZNMktplace,21/01/2022,31108655,Transport Related Expenditure,Repairs and Maintenance - Transport,Greater Manchester Combined Authority ,10.99
AMZNMktplace,21/01/2022,31108668,Transport Related Expenditure,Repairs and Maintenance - Transport,Greater Manchester Combined Authority ,13.59
AMZNMktplace,21/01/2022,31108415,Transport Related Expenditure,Repairs and Maintenance - Transport,Greater Manchester Combined Authority ,70.05
AMZNMktplace,21/01/2022,31108424,Transport Related Expenditure,Repairs and Maintenance - Transport,Greater Manchester Combined Authority ,11.99
AMZNMktplace,21/01/2022,31108442,Transport Related Expenditure,Repairs and Maintenance - Transport,Greater Manchester Combined Authority ,21.99
AMZNMktplace,21/01/2022,31108447,Transport Related Expenditure,Repairs and Maintenance - Transport,Greater Manchester Combined Authority ,9.89
AMZNMktplace,21/01/2022,31108515,Transport Related Expenditure,Repairs and Maintenance - Transport,Greater Manchester Combined Authority ,119.99
AMZNMktplace,21/01/2022,31108522,Premises Related Expenditure,Responsive Repairs & Maintenance,Greater Manchester Combined Authority ,31.95
AMZNMktplace,21/01/2022,31108546,"Supplies, Services & Other Expenses",Stationery,Greater Manchester Combined Authority ,56.97
AMZNMktplace,21/01/2022,31108582,"Supplies, Services & Other Expenses",Stationery,Greater Manchester Combined Authority ,39.66
AMZNMktplace,21/01/2022,31108107,"Supplies, Services & Other Expenses",Subsistence,Greater Manchester Combined Authority ,92.95
AMZNMktplace,24/01/2022,31108035,Transport Related Expenditure,Repairs and Maintenance - Transport,Greater Manchester Combined Authority ,34.36
AMZNMktplace,24/01/2022,31108050,Transport Related Expenditure,Repairs and Maintenance - Transport,Greater Manchester Combined Authority ,5.69
AMZNMktplace,24/01/2022,31108089,Transport Related Expenditure,Repairs and Maintenance - Transport,Greater Manchester Combined Authority ,14.99
AMZNMktplace,24/01/2022,31108101,Transport Related Expenditure,Repairs and Maintenance - Transport,Greater Manchester Combined Authority ,34.19
AMZNMktplace,24/01/2022,31108117,Transport Related Expenditure,Repairs and Maintenance - Transport,Greater Manchester Combined Authority ,13.5
AMZNMktplace,24/01/2022,31108122,Transport Related Expenditure,Repairs and Maintenance - Transport,Greater Manchester Combined Authority ,318.44
AMZNMktplace,24/01/2022,31108128,Transport Related Expenditure,Repairs and Maintenance - Transport,Greater Manchester Combined Authority ,17.99
AMZNMktplace,24/01/2022,31108140,Transport Related Expenditure,Repairs and Maintenance - Transport,Greater Manchester Combined Authority ,19.75
AMZNMktplace,24/01/2022,31108155,Transport Related Expenditure,Repairs and Maintenance - Transport,Greater Manchester Combined Authority ,13.98
AMZNMktplace,24/01/2022,31108187,"Supplies, Services & Other Expenses",Subsistence,Greater Manchester Combined Authority ,10.99
AMZNMktplace,24/01/2022,31108469,Premises Related Expenditure,Responsive Repairs & Maintenance,Greater Manchester Combined Authority ,23.99
AMZNMktplace,24/01/2022,31104931,"Supplies, Services & Other Expenses",Subsistence,Greater Manchester Combined Authority ,268.99
AMZNMktplace,24/01/2022,31108618,"Supplies, Services & Other Expenses",Stationery,Greater Manchester Combined Authority ,53.91
AMZNMktplace,27/01/2022,31108485,Transport Related Expenditure,Repairs and Maintenance - Transport,Greater Manchester Combined Authority ,8.78
AMZNMktplace,27/01/2022,31108578,Transport Related Expenditure,Repairs and Maintenance - Transport,Greater Manchester Combined Authority ,21.79
AMZNMktplace,27/01/2022,31108541,"Supplies, Services & Other Expenses",Subsistence,Greater Manchester Combined Authority ,39.99
AMZNMktplace,28/01/2022,31108635,Premises Related Expenditure,Responsive Repairs & Maintenance,Greater Manchester Combined Authority ,357.8
AMZNMktplace,01/02/2022,31104760,"Supplies, Services & Other Expenses",Operational Equipment Non-Consumables,Greater Manchester Combined Authority ,58.33
AMZNMktplace,01/02/2022,31108460,Premises Related Expenditure,Responsive Repairs & Maintenance,Greater Manchester Combined Authority ,32.79
AMZNMktplace,03/02/2022,31108532,Indirect Employee Allowances,Other Training Expenses,Greater Manchester Combined Authority ,100.91
AMZNMktplace,03/02/2022,31108183,"Supplies, Services & Other Expenses",Subsistence,Greater Manchester Combined Authority ,17.99
AMZNMktplace,03/02/2022,31108094,"Supplies, Services & Other Expenses",Subsistence,Greater Manchester Combined Authority ,119.96
AMZNMktplace,03/02/2022,31108550,"Supplies, Services & Other Expenses",Subsistence,Greater Manchester Combined Authority ,33.69
AMZNMktplace,03/02/2022,31108557,"Supplies, Services & Other Expenses",General Office Expenses,Greater Manchester Combined Authority ,39.99
AMZNMktplace,03/02/2022,31108692,"Supplies, Services & Other Expenses",General Office Expenses,Greater Manchester Combined Authority ,39.99
AMZNMktplace,05/02/2022,31105024,"Supplies, Services & Other Expenses",Subsistence,Greater Manchester Combined Authority ,15.98
AMZNMktplace,13/02/2022,31108565,Transport Related Expenditure,Repairs and Maintenance - Transport,Greater Manchester Combined Authority ,7.99
AMZNMktplace,13/02/2022,31108645,Transport Related Expenditure,Repairs and Maintenance - Transport,Greater Manchester Combined Authority ,4.48
AMZNMktplace,13/02/2022,31108697,Transport Related Expenditure,Repairs and Maintenance - Transport,Greater Manchester Combined Authority ,33.98
AMZNMktplace,22/02/2022,31108621,"Supplies, Services & Other Expenses",Subsistence,Greater Manchester Combined Authority ,119.7
AMZNMktplace,02/03/2022,31110811,"Supplies, Services & Other Expenses",Subsistence,Greater Manchester Combined Authority ,24.68
AMZNMktplace,02/03/2022,31110883,"Supplies, Services & Other Expenses",Subsistence,Greater Manchester Combined Authority ,129.99
AMZNMktplace,02/03/2022,31110899,"Supplies, Services & Other Expenses",Subsistence,Greater Manchester Combined Authority ,8.99
AMZNMktplace,02/03/2022,31111020,"Supplies, Services & Other Expenses",Subsistence,Greater Manchester Combined Authority ,78.99
AMZNMktplace,02/03/2022,31111040,"Supplies, Services & Other Expenses",Subsistence,Greater Manchester Combined Authority ,129.99
AMZNMktplace,02/03/2022,31111059,"Supplies, Services & Other Expenses",Subsistence,Greater Manchester Combined Authority ,4.98
AMZNMktplace,02/03/2022,31111061,"Supplies, Services & Other Expenses",Subsistence,Greater Manchester Combined Authority ,129.99
AMZNMktplace,02/03/2022,31111070,"Supplies, Services & Other Expenses",Subsistence,Greater Manchester Combined Authority ,129.99
AMZNMktplace,03/03/2022,31110830,Transport Related Expenditure,Repairs and Maintenance - Transport,Greater Manchester Combined Authority ,77.96
AMZNMktplace,03/03/2022,31110831,Transport Related Expenditure,Repairs and Maintenance - Transport,Greater Manchester Combined Authority ,36.92
AMZNMktplace,03/03/2022,31110870,Transport Related Expenditure,Repairs and Maintenance - Transport,Greater Manchester Combined Authority ,44.99
AMZNMktplace,03/03/2022,31110871,Transport Related Expenditure,Repairs and Maintenance - Transport,Greater Manchester Combined Authority ,42.58
AMZNMktplace,03/03/2022,31110879,Transport Related Expenditure,Repairs and Maintenance - Transport,Greater Manchester Combined Authority ,32.87
AMZNMktplace,03/03/2022,31110886,Transport Related Expenditure,Repairs and Maintenance - Transport,Greater Manchester Combined Authority ,34.19
AMZNMktplace,03/03/2022,31110938,Transport Related Expenditure,Repairs and Maintenance - Transport,Greater Manchester Combined Authority ,10.59
AMZNMktplace,03/03/2022,31110975,Transport Related Expenditure,Repairs and Maintenance - Transport,Greater Manchester Combined Authority ,81.99
AMZNMktplace,03/03/2022,31110986,Transport Related Expenditure,Repairs and Maintenance - Transport,Greater Manchester Combined Authority ,11.99
AMZNMktplace,03/03/2022,31111046,Transport Related Expenditure,Repairs and Maintenance - Transport,Greater Manchester Combined Authority ,3.16
AMZNMktplace,03/03/2022,31111071,Transport Related Expenditure,Repairs and Maintenance - Transport,Greater Manchester Combined Authority ,23.25
AMZNMktplace,03/03/2022,31111076,Transport Related Expenditure,Repairs and Maintenance - Transport,Greater Manchester Combined Authority ,31.55
AMZNMktplace,03/03/2022,31111083,Transport Related Expenditure,Repairs and Maintenance - Transport,Greater Manchester Combined Authority ,23.94
AMZNMktplace,03/03/2022,31111087,Transport Related Expenditure,Repairs and Maintenance - Transport,Greater Manchester Combined Authority ,13.99
AMZNMktplace,03/03/2022,31110996,"Supplies, Services & Other Expenses",Office Equipment,Greater Manchester Combined Authority ,55.29
AMZNMktplace,07/03/2022,31110961,Premises Related Expenditure,Responsive Repairs & Maintenance,Greater Manchester Combined Authority ,27.99
AMZNMktplace,07/03/2022,31110795,Premises Related Expenditure,Responsive Repairs & Maintenance,Greater Manchester Combined Authority ,10.99
AMZNMktplace,07/03/2022,31110887,Premises Related Expenditure,Responsive Repairs & Maintenance,Greater Manchester Combined Authority ,21.58
AMZNMktplace,10/03/2022,31111064,Premises Related Expenditure,Responsive Repairs & Maintenance,Greater Manchester Combined Authority ,20.94
AMZNMktplace,16/03/2022,31111961,Premises Related Expenditure,Responsive Repairs & Maintenance,Greater Manchester Combined Authority ,31.99
AMZNMktplace,17/03/2022,31112155,"Supplies, Services & Other Expenses",Subsistence,Greater Manchester Combined Authority ,9.99
AMZNMktplace,18/03/2022,31111931,Premises Related Expenditure,Responsive Repairs & Maintenance,Greater Manchester Combined Authority ,11.48
AMZNMktplace,19/03/2022,31108110,"Supplies, Services & Other Expenses",Office Equipment,Greater Manchester Combined Authority ,29.99
AMZNMktplace,21/03/2022,31111997,"Supplies, Services & Other Expenses",Office Equipment,Greater Manchester Combined Authority ,32.89
AMZNMktplace,22/03/2022,31111994,"Supplies, Services & Other Expenses",Computer Hardware,Greater Manchester Combined Authority ,25.99
AMZNMktplace,24/03/2022,31099649,Premises Related Expenditure,Responsive Repairs & Maintenance,Greater Manchester Combined Authority ,14.99
AMZNMktplace,24/03/2022,31099646,"Supplies, Services & Other Expenses",Stationery,Greater Manchester Combined Authority ,49.43
AMZNMktplace,28/03/2022,31111953,Premises Related Expenditure,Responsive Repairs & Maintenance,Greater Manchester Combined Authority ,48.98
AMZNMktplace,28/03/2022,31110816,Premises Related Expenditure,Responsive Repairs & Maintenance,Greater Manchester Combined Authority ,24.99
AMZNMktplace,30/03/2022,31112115,Transport Related Expenditure,Repairs and Maintenance - Transport,Greater Manchester Combined Authority ,32.99
AMZNMktplace,30/03/2022,31112122,Transport Related Expenditure,Repairs and Maintenance - Transport,Greater Manchester Combined Authority ,8.15
AMZNMktplace,30/03/2022,31112152,Transport Related Expenditure,Repairs and Maintenance - Transport,Greater Manchester Combined Authority ,9.95
AMZNMktplace,30/03/2022,31111941,Transport Related Expenditure,Repairs and Maintenance - Transport,Greater Manchester Combined Authority ,32.92
AMZNMktplace,30/03/2022,31111976,Transport Related Expenditure,Repairs and Maintenance - Transport,Greater Manchester Combined Authority ,30.25
AMZNMktplace,30/03/2022,31111992,Transport Related Expenditure,Repairs and Maintenance - Transport,Greater Manchester Combined Authority ,10.19
AMZNMktplace,30/03/2022,31112019,Transport Related Expenditure,Repairs and Maintenance - Transport,Greater Manchester Combined Authority ,4.49
AMZNMktplace,30/03/2022,31112032,Transport Related Expenditure,Repairs and Maintenance - Transport,Greater Manchester Combined Authority ,31.81
AMZNMktplace,30/03/2022,31112042,Transport Related Expenditure,Repairs and Maintenance - Transport,Greater Manchester Combined Authority ,8.11
AMZNMktplace,30/03/2022,31112055,Transport Related Expenditure,Repairs and Maintenance - Transport,Greater Manchester Combined Authority ,12.99
AMZNMktplace,30/03/2022,31112081,Transport Related Expenditure,Repairs and Maintenance - Transport,Greater Manchester Combined Authority ,24.28
AMZNMktplace,30/03/2022,31112092,Transport Related Expenditure,Repairs and Maintenance - Transport,Greater Manchester Combined Authority ,5.07
AMZNMKTPLACE AMAZON.CO,05/01/2022,31101565,Premises Related Expenditure,Responsive Repairs & Maintenance,Greater Manchester Combined Authority ,18.99
AMZNMKTPLACE AMAZON.CO,10/01/2022,31101511,Indirect Employee Allowances,Other Training Expenses,Greater Manchester Combined Authority ,20.28
AMZNMKTPLACE AMAZON.CO,19/01/2022,31108130,"Supplies, Services & Other Expenses",Stationery,Greater Manchester Combined Authority ,35.96
AMZNMKTPLACE AMAZON.CO,19/01/2022,31108145,"Supplies, Services & Other Expenses",Subsistence,Greater Manchester Combined Authority ,12.98
AMZNMKTPLACE AMAZON.CO,19/01/2022,31108085,"Supplies, Services & Other Expenses",Subsistence,Greater Manchester Combined Authority ,33.98
AMZNMKTPLACE AMAZON.CO,20/01/2022,31108510,"Supplies, Services & Other Expenses",Subsistence,Greater Manchester Combined Authority ,42.45
AMZNMKTPLACE AMAZON.CO,20/01/2022,31108543,"Supplies, Services & Other Expenses",Subsistence,Greater Manchester Combined Authority ,110.49
AMZNMKTPLACE AMAZON.CO,21/01/2022,31108654,Transport Related Expenditure,Repairs and Maintenance - Transport,Greater Manchester Combined Authority ,16.92
AMZNMKTPLACE AMAZON.CO,21/01/2022,31104999,Transport Related Expenditure,Repairs and Maintenance - Transport,Greater Manchester Combined Authority ,8.49
AMZNMKTPLACE AMAZON.CO,21/01/2022,31108516,Transport Related Expenditure,Repairs and Maintenance - Transport,Greater Manchester Combined Authority ,7.9
AMZNMKTPLACE AMAZON.CO,21/01/2022,31108517,Transport Related Expenditure,Repairs and Maintenance - Transport,Greater Manchester Combined Authority ,38.18
AMZNMKTPLACE AMAZON.CO,21/01/2022,31108538,Transport Related Expenditure,Repairs and Maintenance - Transport,Greater Manchester Combined Authority ,14.9
AMZNMKTPLACE AMAZON.CO,21/01/2022,31108444,Premises Related Expenditure,Responsive Repairs & Maintenance,Greater Manchester Combined Authority ,35.9
AMZNMKTPLACE AMAZON.CO,21/01/2022,31108520,Premises Related Expenditure,Responsive Repairs & Maintenance,Greater Manchester Combined Authority ,139.9
AMZNMKTPLACE AMAZON.CO,21/01/2022,31108641,Premises Related Expenditure,Responsive Repairs & Maintenance,Greater Manchester Combined Authority ,17.49
AMZNMKTPLACE AMAZON.CO,21/01/2022,31108646,Premises Related Expenditure,Responsive Repairs & Maintenance,Greater Manchester Combined Authority ,9.85
AMZNMKTPLACE AMAZON.CO,24/01/2022,31108032,Transport Related Expenditure,Repairs and Maintenance - Transport,Greater Manchester Combined Authority ,32.5
AMZNMKTPLACE AMAZON.CO,24/01/2022,31108051,Transport Related Expenditure,Repairs and Maintenance - Transport,Greater Manchester Combined Authority ,49.6
AMZNMKTPLACE AMAZON.CO,24/01/2022,31108136,Transport Related Expenditure,Repairs and Maintenance - Transport,Greater Manchester Combined Authority ,22.99
AMZNMKTPLACE AMAZON.CO,24/01/2022,31108151,Transport Related Expenditure,Repairs and Maintenance - Transport,Greater Manchester Combined Authority ,22.89
AMZNMKTPLACE AMAZON.CO,24/01/2022,31108158,Transport Related Expenditure,Repairs and Maintenance - Transport,Greater Manchester Combined Authority ,21.06
AMZNMKTPLACE AMAZON.CO,24/01/2022,31108167,Transport Related Expenditure,Repairs and Maintenance - Transport,Greater Manchester Combined Authority ,9.99
AMZNMKTPLACE AMAZON.CO,26/01/2022,31108448,"Supplies, Services & Other Expenses",Office Equipment,Greater Manchester Combined Authority ,28.89
AMZNMKTPLACE AMAZON.CO,31/01/2022,31108413,"Supplies, Services & Other Expenses",Subsistence,Greater Manchester Combined Authority ,176.81
AMZNMKTPLACE AMAZON.CO,31/01/2022,31105035,"Supplies, Services & Other Expenses",Operational Equipment Non-Consumables,Greater Manchester Combined Authority ,13.48
AMZNMKTPLACE AMAZON.CO,01/02/2022,31108577,Premises Related Expenditure,Responsive Repairs & Maintenance,Greater Manchester Combined Authority ,20.83
AMZNMKTPLACE AMAZON.CO,01/02/2022,31108585,Premises Related Expenditure,Responsive Repairs & Maintenance,Greater Manchester Combined Authority ,35.34
AMZNMKTPLACE AMAZON.CO,01/02/2022,31108701,Premises Related Expenditure,Responsive Repairs & Maintenance,Greater Manchester Combined Authority ,20.67
AMZNMKTPLACE AMAZON.CO,03/02/2022,31108461,"Supplies, Services & Other Expenses",Subsistence,Greater Manchester Combined Authority ,34.26
AMZNMKTPLACE AMAZON.CO,03/02/2022,31108486,"Supplies, Services & Other Expenses",Subsistence,Greater Manchester Combined Authority ,14.67
AMZNMKTPLACE AMAZON.CO,03/02/2022,31108666,"Supplies, Services & Other Expenses",Subsistence,Greater Manchester Combined Authority ,-9.91
AMZNMKTPLACE AMAZON.CO,03/02/2022,31108690,"Supplies, Services & Other Expenses",Subsistence,Greater Manchester Combined Authority ,15.95
AMZNMKTPLACE AMAZON.CO,03/02/2022,31108694,"Supplies, Services & Other Expenses",Subsistence,Greater Manchester Combined Authority ,25.18
AMZNMKTPLACE AMAZON.CO,03/02/2022,31104763,"Supplies, Services & Other Expenses",Waste Education Materials,Greater Manchester Combined Authority ,148.45
AMZNMKTPLACE AMAZON.CO,10/02/2022,31103256,"Supplies, Services & Other Expenses",Computer Hardware,Greater Manchester Combined Authority ,14.99
AMZNMKTPLACE AMAZON.CO,28/02/2022,31110805,"Supplies, Services & Other Expenses",Subsistence,Greater Manchester Combined Authority ,190.44
AMZNMKTPLACE AMAZON.CO,02/03/2022,31110941,"Supplies, Services & Other Expenses",Subsistence,Greater Manchester Combined Authority ,78.99
AMZNMKTPLACE AMAZON.CO,02/03/2022,31104836,"Supplies, Services & Other Expenses",Stationery,Greater Manchester Combined Authority ,2.73
AMZNMKTPLACE AMAZON.CO,03/03/2022,31110866,Transport Related Expenditure,Repairs and Maintenance - Transport,Greater Manchester Combined Authority ,19.99
AMZNMKTPLACE AMAZON.CO,03/03/2022,31110874,Transport Related Expenditure,Repairs and Maintenance - Transport,Greater Manchester Combined Authority ,14.99
AMZNMKTPLACE AMAZON.CO,03/03/2022,31110972,Transport Related Expenditure,Repairs and Maintenance - Transport,Greater Manchester Combined Authority ,25.37
AMZNMKTPLACE AMAZON.CO,03/03/2022,31111012,Transport Related Expenditure,Repairs and Maintenance - Transport,Greater Manchester Combined Authority ,18.82
AMZNMKTPLACE AMAZON.CO,03/03/2022,31111023,Transport Related Expenditure,Repairs and Maintenance - Transport,Greater Manchester Combined Authority ,15.98
AMZNMKTPLACE AMAZON.CO,03/03/2022,31111068,Transport Related Expenditure,Repairs and Maintenance - Transport,Greater Manchester Combined Authority ,136.6
AMZNMKTPLACE AMAZON.CO,03/03/2022,31111072,Transport Related Expenditure,Repairs and Maintenance - Transport,Greater Manchester Combined Authority ,11.25
AMZNMKTPLACE AMAZON.CO,03/03/2022,31111049,"Supplies, Services & Other Expenses",Office Equipment,Greater Manchester Combined Authority ,21.93
AMZNMKTPLACE AMAZON.CO,03/03/2022,31111048,"Supplies, Services & Other Expenses",Computer Hardware,Greater Manchester Combined Authority ,32.99
AMZNMKTPLACE AMAZON.CO,04/03/2022,31110978,"Supplies, Services & Other Expenses",Stationery,Greater Manchester Combined Authority ,8.98
AMZNMKTPLACE AMAZON.CO,04/03/2022,31110797,"Supplies, Services & Other Expenses",Cleaning Equipment,Greater Manchester Combined Authority ,7.48
AMZNMKTPLACE AMAZON.CO,15/03/2022,31112145,"Supplies, Services & Other Expenses",Subsistence,Greater Manchester Combined Authority ,22.03
AMZNMKTPLACE AMAZON.CO,17/03/2022,31112006,"Supplies, Services & Other Expenses",Subsistence,Greater Manchester Combined Authority ,14.99
AMZNMKTPLACE AMAZON.CO,17/03/2022,31112070,"Supplies, Services & Other Expenses",Subsistence,Greater Manchester Combined Authority ,14.99
AMZNMKTPLACE AMAZON.CO,17/03/2022,31108432,"Supplies, Services & Other Expenses",Stationery,Greater Manchester Combined Authority ,12.79
AMZNMKTPLACE AMAZON.CO,22/03/2022,31112157,"Supplies, Services & Other Expenses",Computer Hardware,Greater Manchester Combined Authority ,10.98
AMZNMKTPLACE AMAZON.CO,24/03/2022,31108527,Premises Related Expenditure,Responsive Repairs & Maintenance,Greater Manchester Combined Authority ,6.99
AMZNMKTPLACE AMAZON.CO,30/03/2022,31112129,Transport Related Expenditure,Repairs and Maintenance - Transport,Greater Manchester Combined Authority ,13.66
AMZNMKTPLACE AMAZON.CO,30/03/2022,31112131,Transport Related Expenditure,Repairs and Maintenance - Transport,Greater Manchester Combined Authority ,95.98
AMZNMKTPLACE AMAZON.CO,30/03/2022,31112135,Transport Related Expenditure,Repairs and Maintenance - Transport,Greater Manchester Combined Authority ,78.99
AMZNMKTPLACE AMAZON.CO,30/03/2022,31112144,Transport Related Expenditure,Repairs and Maintenance - Transport,Greater Manchester Combined Authority ,18.88
AMZNMKTPLACE AMAZON.CO,30/03/2022,31111951,Transport Related Expenditure,Repairs and Maintenance - Transport,Greater Manchester Combined Authority ,25.2
AMZNMKTPLACE AMAZON.CO,30/03/2022,31111956,Transport Related Expenditure,Repairs and Maintenance - Transport,Greater Manchester Combined Authority ,22.96
AMZNMKTPLACE AMAZON.CO,30/03/2022,31111965,Transport Related Expenditure,Repairs and Maintenance - Transport,Greater Manchester Combined Authority ,12.99
AMZNMKTPLACE AMAZON.CO,30/03/2022,31111967,Transport Related Expenditure,Repairs and Maintenance - Transport,Greater Manchester Combined Authority ,18.99
AMZNMKTPLACE AMAZON.CO,30/03/2022,31111975,Transport Related Expenditure,Repairs and Maintenance - Transport,Greater Manchester Combined Authority ,62.4
AMZNMKTPLACE AMAZON.CO,30/03/2022,31112024,Transport Related Expenditure,Repairs and Maintenance - Transport,Greater Manchester Combined Authority ,89.99
AMZNMKTPLACE AMAZON.CO,30/03/2022,31112025,Transport Related Expenditure,Repairs and Maintenance - Transport,Greater Manchester Combined Authority ,18.99
AMZNMKTPLACE AMAZON.CO,30/03/2022,31112063,Transport Related Expenditure,Repairs and Maintenance - Transport,Greater Manchester Combined Authority ,281
AMZNMKTPLACE AMAZON.CO,30/03/2022,31112089,Transport Related Expenditure,Repairs and Maintenance - Transport,Greater Manchester Combined Authority ,7.85
AMZNMKTPLACE AMAZON.CO,30/03/2022,31112094,Transport Related Expenditure,Repairs and Maintenance - Transport,Greater Manchester Combined Authority ,31.15
AMZNMKTPLACE AMAZON.CO,30/03/2022,31112096,Transport Related Expenditure,Repairs and Maintenance - Transport,Greater Manchester Combined Authority ,34.69
APPLE.COM/BILL,04/02/2022,31103452,"Supplies, Services & Other Expenses",Computer Software,Greater Manchester Combined Authority ,0.79
APPLE.COM/BILL,04/02/2022,31105010,"Supplies, Services & Other Expenses",Computer Software,Greater Manchester Combined Authority ,0.79
APPLE.COM/BILL,04/02/2022,31108079,"Supplies, Services & Other Expenses",Computer Software,Greater Manchester Combined Authority ,0.79
APPLE.COM/BILL,04/02/2022,31108474,"Supplies, Services & Other Expenses",Computer Software,Greater Manchester Combined Authority ,0.79
ARCO ASHTON UNDER LYNE,05/01/2022,31103237,Premises Related Expenditure,Responsive Repairs & Maintenance,Greater Manchester Combined Authority ,7.57
ARCO ASHTON UNDER LYNE,27/01/2022,31108558,Premises Related Expenditure,Waste Site Responsive,Greater Manchester Combined Authority ,140.5
ARCO ASHTON UNDER LYNE,02/03/2022,31110859,"Supplies, Services & Other Expenses",Operational Equipment Consumables,Greater Manchester Combined Authority ,150.98
ARCO ASHTON UNDER LYNE,07/03/2022,31111015,Premises Related Expenditure,Responsive Repairs & Maintenance,Greater Manchester Combined Authority ,20.41
ARCO ASHTON UNDER LYNE,19/03/2022,31111937,Premises Related Expenditure,Waste Site Programmed,Greater Manchester Combined Authority ,17.99
ARGOS LTD,04/03/2022,31110934,"Supplies, Services & Other Expenses",Subsistence,Greater Manchester Combined Authority ,171.95
ARGOS LTD,04/03/2022,31110962,"Supplies, Services & Other Expenses",Subsistence,Greater Manchester Combined Authority ,173.95
ASDA STORE 4732,28/02/2022,31110836,"Supplies, Services & Other Expenses",Subsistence,Greater Manchester Combined Authority ,13.1
ASDA STORES 4490,02/02/2022,31108055,"Supplies, Services & Other Expenses",Subsistence,Greater Manchester Combined Authority ,4
ASDA STORES 4490,02/02/2022,31108513,"Supplies, Services & Other Expenses",Subsistence,Greater Manchester Combined Authority ,14.18
ASDA SUPERSTORE,19/01/2022,31103259,"Supplies, Services & Other Expenses",Subsistence,Greater Manchester Combined Authority ,15.54
ASDA SUPERSTORE,01/02/2022,31108514,"Supplies, Services & Other Expenses",Subsistence,Greater Manchester Combined Authority ,15.02
ASDA SUPERSTORE,01/02/2022,31108642,"Supplies, Services & Other Expenses",Subsistence,Greater Manchester Combined Authority ,16.52
ASDA SUPERSTORE,01/02/2022,31108652,"Supplies, Services & Other Expenses",Subsistence,Greater Manchester Combined Authority ,20.94
ASDA SUPERSTORE,01/02/2022,31104861,"Supplies, Services & Other Expenses",Subsistence,Greater Manchester Combined Authority ,31.05
ASDA SUPERSTORE,01/02/2022,31104973,"Supplies, Services & Other Expenses",Subsistence,Greater Manchester Combined Authority ,18.24
ASDA SUPERSTORE,01/02/2022,31108477,"Supplies, Services & Other Expenses",Subsistence,Greater Manchester Combined Authority ,16.93
ASDA SUPERSTORE,03/02/2022,31104815,"Supplies, Services & Other Expenses",Subsistence,Greater Manchester Combined Authority ,16.33
ASDA SUPERSTORE,03/02/2022,31108154,"Supplies, Services & Other Expenses",Subsistence,Greater Manchester Combined Authority ,21.15
ASDA SUPERSTORE,28/02/2022,31110905,"Supplies, Services & Other Expenses",Subsistence,Greater Manchester Combined Authority ,17.35
ASDA SUPERSTORE,28/02/2022,31110954,"Supplies, Services & Other Expenses",Subsistence,Greater Manchester Combined Authority ,14.09
ASDA SUPERSTORE,28/02/2022,31111003,"Supplies, Services & Other Expenses",Subsistence,Greater Manchester Combined Authority ,5.53
ASDA SUPERSTORE,15/03/2022,31112004,"Supplies, Services & Other Expenses",Subsistence,Greater Manchester Combined Authority ,21.64
ASDA SUPERSTORE,16/03/2022,31108026,"Supplies, Services & Other Expenses",Subsistence,Greater Manchester Combined Authority ,62.6
ASDA SUPERSTORE,16/03/2022,31110801,"Supplies, Services & Other Expenses",Subsistence,Greater Manchester Combined Authority ,11.31
AUTO CRASH PARTS LTD,03/03/2022,31110928,Transport Related Expenditure,Repairs and Maintenance - Transport,Greater Manchester Combined Authority ,126
B & Q 1057,01/02/2022,31108462,Premises Related Expenditure,Responsive Repairs & Maintenance,Greater Manchester Combined Authority ,20
B & Q 1057,01/02/2022,31108065,Premises Related Expenditure,Responsive Repairs & Maintenance,Greater Manchester Combined Authority ,33.44
B & Q 1057,01/02/2022,31108124,Premises Related Expenditure,Responsive Repairs & Maintenance,Greater Manchester Combined Authority ,56.95
B & Q 1057,01/02/2022,31108147,Premises Related Expenditure,Responsive Repairs & Maintenance,Greater Manchester Combined Authority ,41.32
B & Q 1057,03/02/2022,31104961,Premises Related Expenditure,Responsive Repairs & Maintenance,Greater Manchester Combined Authority ,81.5
B & Q 1057,10/03/2022,31110867,Premises Related Expenditure,Responsive Repairs & Maintenance,Greater Manchester Combined Authority ,39.19
B & Q 1057,10/03/2022,31110891,Premises Related Expenditure,Responsive Repairs & Maintenance,Greater Manchester Combined Authority ,40.27
B & Q 1057,10/03/2022,31110924,Premises Related Expenditure,Responsive Repairs & Maintenance,Greater Manchester Combined Authority ,32.3
B & Q 1057,10/03/2022,31111054,Premises Related Expenditure,Responsive Repairs & Maintenance,Greater Manchester Combined Authority ,64.6
B & Q 1057,18/03/2022,31111973,Premises Related Expenditure,Responsive Repairs & Maintenance,Greater Manchester Combined Authority ,24
B & Q 1057,18/03/2022,31112053,Premises Related Expenditure,Responsive Repairs & Maintenance,Greater Manchester Combined Authority ,57.48
B & Q 1057,18/03/2022,31112075,Premises Related Expenditure,Responsive Repairs & Maintenance,Greater Manchester Combined Authority ,109.88
B & Q 1190,18/01/2022,31108033,Premises Related Expenditure,Responsive Repairs & Maintenance,Greater Manchester Combined Authority ,32.3
B & Q 1190,01/02/2022,31108629,Premises Related Expenditure,Responsive Repairs & Maintenance,Greater Manchester Combined Authority ,6.05
B & Q 1190,01/02/2022,31108678,Premises Related Expenditure,Responsive Repairs & Maintenance,Greater Manchester Combined Authority ,57.95
B & Q 1190,03/02/2022,31108603,"Supplies, Services & Other Expenses",Subsistence,Greater Manchester Combined Authority ,12
B & Q 1229,05/01/2022,31103405,Premises Related Expenditure,Responsive Repairs & Maintenance,Greater Manchester Combined Authority ,18.2
B & Q 1229,01/02/2022,31108707,Premises Related Expenditure,Responsive Repairs & Maintenance,Greater Manchester Combined Authority ,38.58
B & Q 1229,10/03/2022,31110869,Premises Related Expenditure,Responsive Repairs & Maintenance,Greater Manchester Combined Authority ,53.07
B & Q 1229,10/03/2022,31110967,Premises Related Expenditure,Responsive Repairs & Maintenance,Greater Manchester Combined Authority ,56.58
B & Q 1229,10/03/2022,31111077,Premises Related Expenditure,Responsive Repairs & Maintenance,Greater Manchester Combined Authority ,244.77
B & Q 1229,16/03/2022,31112050,"Supplies, Services & Other Expenses",Subsistence,Greater Manchester Combined Authority ,62.4
B & Q 1279,01/02/2022,31108561,Premises Related Expenditure,Responsive Repairs & Maintenance,Greater Manchester Combined Authority ,12.8
B & Q 1279,18/03/2022,31112102,Premises Related Expenditure,Responsive Repairs & Maintenance,Greater Manchester Combined Authority ,8.55
B & Q 1304,05/01/2022,31104856,Premises Related Expenditure,Responsive Repairs & Maintenance,Greater Manchester Combined Authority ,56.4
B & Q 1304,27/01/2022,31108109,Premises Related Expenditure,Responsive Repairs & Maintenance,Greater Manchester Combined Authority ,54.7
B & Q 1304,01/02/2022,31108554,Premises Related Expenditure,Responsive Repairs & Maintenance,Greater Manchester Combined Authority ,19.41
B & Q 1311,01/02/2022,31108430,Premises Related Expenditure,Responsive Repairs & Maintenance,Greater Manchester Combined Authority ,7.78
B & Q 1311,03/02/2022,31104864,Premises Related Expenditure,Responsive Repairs & Maintenance,Greater Manchester Combined Authority ,79.4
B & Q 1311,10/03/2022,31110873,Premises Related Expenditure,Responsive Repairs & Maintenance,Greater Manchester Combined Authority ,119.31
B & Q 1311,10/03/2022,31110933,Premises Related Expenditure,Responsive Repairs & Maintenance,Greater Manchester Combined Authority ,26.57
B & Q 1311,10/03/2022,31110993,Premises Related Expenditure,Responsive Repairs & Maintenance,Greater Manchester Combined Authority ,31.24
B & Q 1360,01/02/2022,31108631,Premises Related Expenditure,Responsive Repairs & Maintenance,Greater Manchester Combined Authority ,69.39
B&M 452 - HS BOLTON,28/02/2022,31110812,"Supplies, Services & Other Expenses",Subsistence,Greater Manchester Combined Authority ,14.67
B&M 452 - HS BOLTON,28/02/2022,31110937,"Supplies, Services & Other Expenses",Subsistence,Greater Manchester Combined Authority ,63.03
B&M 718 ATHERTON,20/03/2022,31112074,"Supplies, Services & Other Expenses",Operational Equipment Consumables,Greater Manchester Combined Authority ,48
B&Q LTD,07/03/2022,31110798,Premises Related Expenditure,Responsive Repairs & Maintenance,Greater Manchester Combined Authority ,92
BACKERELECTRIC.COM,28/03/2022,31110988,Premises Related Expenditure,Responsive Repairs & Maintenance,Greater Manchester Combined Authority ,17.7
BISON PARTS LTD,21/01/2022,31108571,Transport Related Expenditure,Repairs and Maintenance - Transport,Greater Manchester Combined Authority ,98.4
BLS monday.com,19/01/2022,31108164,"Supplies, Services & Other Expenses",Computer Software,Greater Manchester Combined Authority ,"1,987.20"
Bolton Lock Company Li,19/01/2022,31108119,Premises Related Expenditure,Responsive Repairs & Maintenance,Greater Manchester Combined Authority ,333.12
Bolton Lock Company Li,27/01/2022,31108562,Premises Related Expenditure,Waste Site Responsive,Greater Manchester Combined Authority ,17.25
BOLTON ROAD S/STN,03/02/2022,31108058,"Supplies, Services & Other Expenses",Subsistence,Greater Manchester Combined Authority ,10.18
BOLTON TRAVEL SHOP,03/02/2022,31108634,"Supplies, Services & Other Expenses",Subsistence,Greater Manchester Combined Authority ,14
BOWLEE GARDEN SHOP,03/02/2022,31108450,Premises Related Expenditure,Fixtures & Fittings,Greater Manchester Combined Authority ,100
BOWLEE GARDEN SHOP,03/02/2022,31108665,Premises Related Expenditure,Fixtures & Fittings,Greater Manchester Combined Authority ,200
BREWERS FAYRE 41518225,24/01/2022,31108482,"Supplies, Services & Other Expenses",Subsistence,Greater Manchester Combined Authority ,21.78
BRIAN S.POPE LIMITED,01/02/2022,31108037,Premises Related Expenditure,Responsive Repairs & Maintenance,Greater Manchester Combined Authority ,20.16
BRIAN S.POPE LIMITED,02/03/2022,31110800,Premises Related Expenditure,Responsive Repairs & Maintenance,Greater Manchester Combined Authority ,75.14
BRIAN S.POPE LIMITED,02/03/2022,31110926,Premises Related Expenditure,Responsive Repairs & Maintenance,Greater Manchester Combined Authority ,15.58
BRIAN S.POPE LIMITED,02/03/2022,31111024,"Supplies, Services & Other Expenses",Operational Equipment Consumables,Greater Manchester Combined Authority ,12.07
BRIAN S.POPE LIMITED,18/03/2022,31111966,Premises Related Expenditure,Responsive Repairs & Maintenance,Greater Manchester Combined Authority ,12.58
BRIAN S.POPE LIMITED,19/03/2022,31112047,Premises Related Expenditure,Responsive Repairs & Maintenance,Greater Manchester Combined Authority ,228.06
BRISTOL MARRIOTT ROYAL,10/01/2022,31104873,"Supplies, Services & Other Expenses",Subsistence,Greater Manchester Combined Authority ,115
BRISTOL MARRIOTT ROYAL,10/01/2022,31105062,"Supplies, Services & Other Expenses",Subsistence,Greater Manchester Combined Authority ,115
BURY PLASTICS,01/02/2022,31108650,Premises Related Expenditure,Responsive Repairs & Maintenance,Greater Manchester Combined Authority ,161.69
BUYABATTERY CO UK,27/01/2022,31108165,Transport Related Expenditure,Repairs and Maintenance - Transport,Greater Manchester Combined Authority ,6.49
CAFFE NERO 646 SALFORD,24/01/2022,31108092,"Supplies, Services & Other Expenses",Subsistence,Greater Manchester Combined Authority ,6.35
CAMPING TRAVEL STORE,24/01/2022,31108126,Transport Related Expenditure,Repairs and Maintenance - Transport,Greater Manchester Combined Authority ,486
CARD FACTORY,03/02/2022,31108408,"Supplies, Services & Other Expenses",Hospitality,Greater Manchester Combined Authority ,28.18
CARD FACTORY,04/02/2022,31108610,"Supplies, Services & Other Expenses",Stationery,Greater Manchester Combined Authority ,4.37
CARTRIDGE SAVE,07/02/2022,31101460,"Supplies, Services & Other Expenses",Stationery,Greater Manchester Combined Authority ,229.51
CASH HANDLING FEE @ 2.95%   ,03/02/2022,31108695,"Supplies, Services & Other Expenses",Subsistence,Greater Manchester Combined Authority ,0.15
CASTLE TANDOORI,28/03/2022,31103379,"Supplies, Services & Other Expenses",Subsistence,Greater Manchester Combined Authority ,119.4
CATERING SPARES,05/01/2022,31103498,Premises Related Expenditure,Responsive Repairs & Maintenance,Greater Manchester Combined Authority ,40.56
CFOA-NFCC,03/02/2022,31101396,Indirect Employee Allowances,Devolved Training,Greater Manchester Combined Authority ,420
CFOA-NFCC,09/03/2022,31108409,Indirect Employee Allowances,Other Training Expenses,Greater Manchester Combined Authority ,480
CITY ELECTRICAL FA,05/01/2022,31104875,Premises Related Expenditure,Responsive Repairs & Maintenance,Greater Manchester Combined Authority ,107.94
CIVIL ENFORCEMENT,24/03/2022,31108097,Transport Related Expenditure,Officers Travel & Subsistence,Greater Manchester Combined Authority ,170
CMT UK LTD TAXI FARE,03/02/2022,31108457,Transport Related Expenditure,Officers Travel & Subsistence,Greater Manchester Combined Authority ,15
CO OP GROUP FOOD,24/01/2022,31108439,"Supplies, Services & Other Expenses",Subsistence,Greater Manchester Combined Authority ,49
CO OP GROUP FOOD,04/02/2022,31108464,"Supplies, Services & Other Expenses",Subsistence,Greater Manchester Combined Authority ,8.95
COCKLESTORM FENCING LT,18/03/2022,31111963,Premises Related Expenditure,Responsive Repairs & Maintenance,Greater Manchester Combined Authority ,149.18
cookiebotcom  co Cybot,15/03/2022,31110970,"Supplies, Services & Other Expenses",Computer Software,Greater Manchester Combined Authority ,36.88
CO-OP GROUP 108321,06/02/2022,31103278,"Supplies, Services & Other Expenses",Subsistence,Greater Manchester Combined Authority ,9.64
CORNMILL,28/03/2022,31103233,"Supplies, Services & Other Expenses",Subsistence,Greater Manchester Combined Authority ,212.85
CROWN DECORATING CENTR,10/03/2022,31110849,Premises Related Expenditure,Responsive Repairs & Maintenance,Greater Manchester Combined Authority ,49.8
CROWN DECORATING CENTR,24/03/2022,31112130,Premises Related Expenditure,Responsive Repairs & Maintenance,Greater Manchester Combined Authority ,73.7
Crowne Plaza Hotels,25/02/2022,31110968,"Supplies, Services & Other Expenses",Subsistence,Greater Manchester Combined Authority ,12
CURB,22/03/2022,31105059,Transport Related Expenditure,Officers Travel & Subsistence,Greater Manchester Combined Authority ,10
CVP,03/03/2022,31105016,"Supplies, Services & Other Expenses",Computer Hardware,Greater Manchester Combined Authority ,189.77
DANVAS,16/02/2022,31108553,"Supplies, Services & Other Expenses",Subsistence,Greater Manchester Combined Authority ,231.84
DELIFRESH,02/02/2022,31099430,"Supplies, Services & Other Expenses",Subsistence,Greater Manchester Combined Authority ,15.15
DELIVEROO,03/02/2022,31103311,"Supplies, Services & Other Expenses",Subsistence,Greater Manchester Combined Authority ,34.48
DIGISTORE24 ULTIMATE,04/02/2022,31108038,"Supplies, Services & Other Expenses",Computer Software,Greater Manchester Combined Authority ,30.37
Domino s Pizza,03/03/2022,31108490,"Supplies, Services & Other Expenses",Subsistence,Greater Manchester Combined Authority ,27.58
DOMINOS PIZZA 27546,04/02/2022,31103511,"Supplies, Services & Other Expenses",Subsistence,Greater Manchester Combined Authority ,27.84
Dulux Decorator Centre,10/03/2022,31110957,Premises Related Expenditure,Responsive Repairs & Maintenance,Greater Manchester Combined Authority ,40.28
DVSA,10/01/2022,31097756,"Supplies, Services & Other Expenses",Professional Fees,Greater Manchester Combined Authority ,-300
DVSA,10/01/2022,31099511,"Supplies, Services & Other Expenses",Professional Fees,Greater Manchester Combined Authority ,210
DVSA,24/01/2022,31108711,"Supplies, Services & Other Expenses",Professional Fees,Greater Manchester Combined Authority ,420
EASYJET00 000K2PGKHP,03/02/2022,31108698,Transport Related Expenditure,Officers Travel & Subsistence,Greater Manchester Combined Authority ,663.5
EB  NFCC MEMBERS INDUC,10/03/2022,31110850,"Supplies, Services & Other Expenses",Conference,Greater Manchester Combined Authority ,378
EB  NFCC MEMBERS INDUC,10/03/2022,31110861,"Supplies, Services & Other Expenses",Conference,Greater Manchester Combined Authority ,378
EB  TAKING QGIS TO THE,03/02/2022,31108683,Employees Pay,Agency Staff Costs,Greater Manchester Combined Authority ,185
EB  WOMENS DEVELOPMENT,17/03/2022,31108052,Indirect Employee Allowances,Devolved Training,Greater Manchester Combined Authority ,264.7
EB  WOMENS DEVELOPMENT,17/03/2022,31108184,Indirect Employee Allowances,Devolved Training,Greater Manchester Combined Authority ,264.7
ECAPS DIRECT,23/03/2022,31111034,"Supplies, Services & Other Expenses",Subsistence,Greater Manchester Combined Authority ,234.94
ECONOMIST GBP - GBP,03/02/2022,31108431,"Supplies, Services & Other Expenses",Periodicals & Magazines,Greater Manchester Combined Authority ,179
EK FREDERIC,18/02/2022,31108574,Transport Related Expenditure,Officers Travel & Subsistence,Greater Manchester Combined Authority ,51.21
EL PASTOR,03/02/2022,31108682,"Supplies, Services & Other Expenses",Subsistence,Greater Manchester Combined Authority ,22.5
ELECTRIC CENTRE,05/01/2022,31103420,Premises Related Expenditure,Responsive Repairs & Maintenance,Greater Manchester Combined Authority ,270
ELECTRIC CENTRE,05/01/2022,31104831,Premises Related Expenditure,Responsive Repairs & Maintenance,Greater Manchester Combined Authority ,153.64
ELECTRIC CENTRE,05/01/2022,31104957,Premises Related Expenditure,Responsive Repairs & Maintenance,Greater Manchester Combined Authority ,307.99
ELECTRIC CENTRE,19/01/2022,31108027,Premises Related Expenditure,Responsive Repairs & Maintenance,Greater Manchester Combined Authority ,53.39
ELECTRIC CENTRE,19/01/2022,31108195,Premises Related Expenditure,Responsive Repairs & Maintenance,Greater Manchester Combined Authority ,185
ELECTRIC CENTRE,19/01/2022,31108100,Premises Related Expenditure,Responsive Repairs & Maintenance,Greater Manchester Combined Authority ,107.4
ELECTRIC CENTRE,19/01/2022,31108114,Premises Related Expenditure,Responsive Repairs & Maintenance,Greater Manchester Combined Authority ,146.52
ELECTRIC CENTRE,21/01/2022,31108556,Premises Related Expenditure,Responsive Repairs & Maintenance,Greater Manchester Combined Authority ,472.96
ELECTRIC CENTRE,21/01/2022,31108705,Premises Related Expenditure,Responsive Repairs & Maintenance,Greater Manchester Combined Authority ,45
ELECTRIC CENTRE,21/01/2022,31108421,Premises Related Expenditure,Responsive Repairs & Maintenance,Greater Manchester Combined Authority ,145.06
ELECTRIC CENTRE,21/01/2022,31108498,Premises Related Expenditure,Responsive Repairs & Maintenance,Greater Manchester Combined Authority ,82.54
ELECTRIC CENTRE,21/01/2022,31108468,Premises Related Expenditure,Responsive Repairs & Maintenance,Greater Manchester Combined Authority ,120.2
ELECTRIC CENTRE,21/01/2022,31108478,Premises Related Expenditure,Responsive Repairs & Maintenance,Greater Manchester Combined Authority ,272.04
ELECTRIC CENTRE,21/01/2022,31108521,Premises Related Expenditure,Responsive Repairs & Maintenance,Greater Manchester Combined Authority ,252.6
ELECTRIC CENTRE,21/01/2022,31108681,Premises Related Expenditure,Responsive Repairs & Maintenance,Greater Manchester Combined Authority ,126
ELECTRIC CENTRE,21/01/2022,31108713,Premises Related Expenditure,Responsive Repairs & Maintenance,Greater Manchester Combined Authority ,69.35
ELECTRIC CENTRE,08/02/2022,31104918,Capital,Workshops Work,Greater Manchester Combined Authority ,103.86
ELECTRIC CENTRE,11/02/2022,31108687,Premises Related Expenditure,Responsive Repairs & Maintenance,Greater Manchester Combined Authority ,123.9
ELECTRIC CENTRE,22/03/2022,31112119,Premises Related Expenditure,Responsive Repairs & Maintenance,Greater Manchester Combined Authority ,272.82
ELECTRIC CENTRE,28/03/2022,31110813,Premises Related Expenditure,Responsive Repairs & Maintenance,Greater Manchester Combined Authority ,29.94
ELECTRIC CENTRE,28/03/2022,31111036,Premises Related Expenditure,Responsive Repairs & Maintenance,Greater Manchester Combined Authority ,89.14
ELECTRIC CENTRE,28/03/2022,31111935,Premises Related Expenditure,Responsive Repairs & Maintenance,Greater Manchester Combined Authority ,365.99
ELECTRIC CENTRE,28/03/2022,31111958,Premises Related Expenditure,Responsive Repairs & Maintenance,Greater Manchester Combined Authority ,24.48
ELECTRIC CENTRE,28/03/2022,31111977,Premises Related Expenditure,Responsive Repairs & Maintenance,Greater Manchester Combined Authority ,25.28
ELECTRIC CENTRE,28/03/2022,31112064,Premises Related Expenditure,Responsive Repairs & Maintenance,Greater Manchester Combined Authority ,376.22
ELECTRIC CENTRE,28/03/2022,31112077,Premises Related Expenditure,Responsive Repairs & Maintenance,Greater Manchester Combined Authority ,36.72
ELECTRIC CENTRE,28/03/2022,31110804,Premises Related Expenditure,Responsive Repairs & Maintenance,Greater Manchester Combined Authority ,127.86
ELECTRIC CENTRE,28/03/2022,31110842,Premises Related Expenditure,Responsive Repairs & Maintenance,Greater Manchester Combined Authority ,56.69
ELECTRIC CENTRE,28/03/2022,31110882,Premises Related Expenditure,Responsive Repairs & Maintenance,Greater Manchester Combined Authority ,252.73
ELECTRIC CENTRE,28/03/2022,31110943,Premises Related Expenditure,Responsive Repairs & Maintenance,Greater Manchester Combined Authority ,38.81
ELECTRIC CENTRE,28/03/2022,31110987,Premises Related Expenditure,Responsive Repairs & Maintenance,Greater Manchester Combined Authority ,134.29
ELECTRIC CENTRE,28/03/2022,31110994,Premises Related Expenditure,Responsive Repairs & Maintenance,Greater Manchester Combined Authority ,20.29
ELECTRIC CENTRE,28/03/2022,31111018,Premises Related Expenditure,Responsive Repairs & Maintenance,Greater Manchester Combined Authority ,16.02
ELECTRIC CENTRE,28/03/2022,31111029,Premises Related Expenditure,Responsive Repairs & Maintenance,Greater Manchester Combined Authority ,173.95
ELECTRIC CENTRE,28/03/2022,31111045,Premises Related Expenditure,Responsive Repairs & Maintenance,Greater Manchester Combined Authority ,26.09
ELECTRIC CENTRE,28/03/2022,31112015,Premises Related Expenditure,Responsive Repairs & Maintenance,Greater Manchester Combined Authority ,163.38
ELECTRIC CENTRE,28/03/2022,31112083,Premises Related Expenditure,Responsive Repairs & Maintenance,Greater Manchester Combined Authority ,141.9
ELECTRIC CENTRE,28/03/2022,31112146,Premises Related Expenditure,Responsive Repairs & Maintenance,Greater Manchester Combined Authority ,537
ELECTRICAL4LESS LTD,28/03/2022,31111075,Premises Related Expenditure,Responsive Repairs & Maintenance,Greater Manchester Combined Authority ,43.47
Electrolux plc,21/01/2022,31108588,Premises Related Expenditure,Fixtures & Fittings,Greater Manchester Combined Authority ,50.99
EMPIRESUPPL,16/03/2022,31104906,Premises Related Expenditure,Responsive Repairs & Maintenance,Greater Manchester Combined Authority ,"1,404.76"
EMPIRESUPPL,16/03/2022,31101378,Premises Related Expenditure,Responsive Repairs & Maintenance,Greater Manchester Combined Authority ,"1,204.80"
ENVOY ON TRAIN,01/03/2022,31110906,Transport Related Expenditure,Officers Travel & Subsistence,Greater Manchester Combined Authority ,66.1
ERNEST BENTLEY & SONS,18/03/2022,31112140,Premises Related Expenditure,Responsive Repairs & Maintenance,Greater Manchester Combined Authority ,17.88
ESSEX HINGE CO.,04/02/2022,31108198,Transport Related Expenditure,Repairs and Maintenance - Transport,Greater Manchester Combined Authority ,166.2
EURO CAR PARKS LIMITED,18/02/2022,31108685,Transport Related Expenditure,Officers Travel & Subsistence,Greater Manchester Combined Authority ,15
EURO CAR PARTS P,05/01/2022,31103416,Premises Related Expenditure,Responsive Repairs & Maintenance,Greater Manchester Combined Authority ,3.79
EURO TAXIS,16/02/2022,31108501,Transport Related Expenditure,Officers Travel & Subsistence,Greater Manchester Combined Authority ,51.21
EUSTON TAP,22/03/2022,31111968,"Supplies, Services & Other Expenses",Subsistence,Greater Manchester Combined Authority ,10.4
EUSTON TAP,22/03/2022,31112101,"Supplies, Services & Other Expenses",Subsistence,Greater Manchester Combined Authority ,9.6
FACEBK  3J8R47BGA2,03/02/2022,31108604,"Supplies, Services & Other Expenses",Stationery,Greater Manchester Combined Authority ,6.34
FACEBK  43ZN67FGA2,03/02/2022,31108580,"Supplies, Services & Other Expenses",Stationery,Greater Manchester Combined Authority ,7
FACEBK  CSRAW6PGA2,03/02/2022,31108530,"Supplies, Services & Other Expenses",Stationery,Greater Manchester Combined Authority ,7
FACEBK  TY3WP87QS2,03/02/2022,31104847,"Supplies, Services & Other Expenses",Stationery,Greater Manchester Combined Authority ,95
FACEBK  WKA28AXKF2,28/02/2022,31108074,"Supplies, Services & Other Expenses",Digital,Greater Manchester Combined Authority ,90.04
FACEBK  Y9VFC6XZ82,04/02/2022,31103504,"Supplies, Services & Other Expenses",Advertising,Greater Manchester Combined Authority ,21.5
FACEBK  YUXUNA7LF2,28/02/2022,31110880,"Supplies, Services & Other Expenses",Digital,Greater Manchester Combined Authority ,32.22
FACEBK  ZCFYT67GA2,03/02/2022,31108441,"Supplies, Services & Other Expenses",Stationery,Greater Manchester Combined Authority ,7
FACEBK  ZHYUP9FQS2,03/02/2022,31108465,"Supplies, Services & Other Expenses",Stationery,Greater Manchester Combined Authority ,250
FACEBK 263VW47292,04/02/2022,31101409,"Supplies, Services & Other Expenses",Advertising,Greater Manchester Combined Authority ,2
FACEBK 2J3CQ83SB2,03/02/2022,31108540,"Supplies, Services & Other Expenses",Digital,Greater Manchester Combined Authority ,90.94
FACEBK 3BAU6BPCU2,16/03/2022,31110896,"Supplies, Services & Other Expenses",Stationery,Greater Manchester Combined Authority ,12
FACEBK 44WW5BK9X2,04/02/2022,31108626,"Supplies, Services & Other Expenses",Stationery,Greater Manchester Combined Authority ,92.41
FACEBK 5KYRFAPAM2,04/02/2022,31108689,"Supplies, Services & Other Expenses",Advertising,Greater Manchester Combined Authority ,2.14
FACEBK 67GM4679X2,04/02/2022,31101370,"Supplies, Services & Other Expenses",Stationery,Greater Manchester Combined Authority ,60
FACEBK 6DHYRD3BS2,28/02/2022,31110822,"Supplies, Services & Other Expenses",Digital,Greater Manchester Combined Authority ,7
FACEBK 794BGAFBM2,04/02/2022,31108142,"Supplies, Services & Other Expenses",Advertising,Greater Manchester Combined Authority ,60
FACEBK 7SY5W3KG92,04/02/2022,31099620,"Supplies, Services & Other Expenses",Stationery,Greater Manchester Combined Authority ,60
FACEBK 9CE9N4PF92,04/02/2022,31101432,"Supplies, Services & Other Expenses",Stationery,Greater Manchester Combined Authority ,90
FACEBK 9JG8TAK3V2,28/02/2022,31111014,"Supplies, Services & Other Expenses",Advertising,Greater Manchester Combined Authority ,90
FACEBK A7PEY779X2,04/02/2022,31104899,"Supplies, Services & Other Expenses",Stationery,Greater Manchester Combined Authority ,27.59
FACEBK B2E46AKBS2,03/02/2022,31108066,"Supplies, Services & Other Expenses",Digital,Greater Manchester Combined Authority ,7
FACEBK D65Q9AK9X2,04/02/2022,31105034,"Supplies, Services & Other Expenses",Stationery,Greater Manchester Combined Authority ,90
FACEBK D7E8J3PG92,04/02/2022,31097897,"Supplies, Services & Other Expenses",Stationery,Greater Manchester Combined Authority ,28.99
FACEBK F82DV5P9X2,04/02/2022,31099578,"Supplies, Services & Other Expenses",Stationery,Greater Manchester Combined Authority ,25
FACEBK FM9HR6F9X2,04/02/2022,31101527,"Supplies, Services & Other Expenses",Stationery,Greater Manchester Combined Authority ,40
FACEBK H6FC8BB4V2,28/02/2022,31111022,"Supplies, Services & Other Expenses",Advertising,Greater Manchester Combined Authority ,3.49
FACEBK HZBWU5T9X2,04/02/2022,31099411,"Supplies, Services & Other Expenses",Stationery,Greater Manchester Combined Authority ,12
FACEBK JVBZR5P9X2,04/02/2022,31099469,"Supplies, Services & Other Expenses",Stationery,Greater Manchester Combined Authority ,17
FACEBK LL43U5P9X2,04/02/2022,31099414,"Supplies, Services & Other Expenses",Stationery,Greater Manchester Combined Authority ,17
FACEBK MBZKA53292,04/02/2022,31101563,"Supplies, Services & Other Expenses",Advertising,Greater Manchester Combined Authority ,1.5
FACEBK N46YN5F292,04/02/2022,31101564,"Supplies, Services & Other Expenses",Advertising,Greater Manchester Combined Authority ,1.5
FACEBK NWXF6774V2,24/01/2022,31103357,"Supplies, Services & Other Expenses",Advertising,Greater Manchester Combined Authority ,56.44
FACEBK P4SKR43G92,04/02/2022,31101585,"Supplies, Services & Other Expenses",Stationery,Greater Manchester Combined Authority ,120
FACEBK PJCPU4T292,04/02/2022,31101535,"Supplies, Services & Other Expenses",Advertising,Greater Manchester Combined Authority ,3
FACEBK PZ2L66B9X2,04/02/2022,31101419,"Supplies, Services & Other Expenses",Stationery,Greater Manchester Combined Authority ,4.55
FACEBK QWGCX4T292,04/02/2022,31103345,"Supplies, Services & Other Expenses",Advertising,Greater Manchester Combined Authority ,25
FACEBK SP7MA579X2,04/02/2022,31099587,"Supplies, Services & Other Expenses",Stationery,Greater Manchester Combined Authority ,7
FACEBK TW76V4T292,04/02/2022,31101533,"Supplies, Services & Other Expenses",Advertising,Greater Manchester Combined Authority ,7
FACEBK U3RKT4FG92,04/02/2022,31101364,"Supplies, Services & Other Expenses",Stationery,Greater Manchester Combined Authority ,90
FACEBK VCXN25BAX2,04/02/2022,31099503,"Supplies, Services & Other Expenses",Stationery,Greater Manchester Combined Authority ,7
FACEBK W7M7J4X292,04/02/2022,31101502,"Supplies, Services & Other Expenses",Advertising,Greater Manchester Combined Authority ,1.5
FACEBK W8AR2879X2,04/02/2022,31104758,"Supplies, Services & Other Expenses",Stationery,Greater Manchester Combined Authority ,90
FACEBK WV4W6CBBS2,28/02/2022,31110901,"Supplies, Services & Other Expenses",Digital,Greater Manchester Combined Authority ,2.47
FACEBK XD3GG3PG92,04/02/2022,31097663,"Supplies, Services & Other Expenses",Stationery,Greater Manchester Combined Authority ,60
FACEBK XZM8R7X9X2,04/02/2022,31103292,"Supplies, Services & Other Expenses",Stationery,Greater Manchester Combined Authority ,25.45
FACEBK Y4269AFBM2,04/02/2022,31108123,"Supplies, Services & Other Expenses",Advertising,Greater Manchester Combined Authority ,52.86
FACEBK YAZSJ4X292,04/02/2022,31101577,Indirect Employee Allowances,Recruitment,Greater Manchester Combined Authority ,5
FACEBK Z5VS957G92,04/02/2022,31099422,"Supplies, Services & Other Expenses",Stationery,Greater Manchester Combined Authority ,20.21
FIRE 2000 LTD,18/03/2022,31112134,Premises Related Expenditure,Responsive Repairs & Maintenance,Greater Manchester Combined Authority ,55.52
FIX THE BOG,10/03/2022,31110833,Premises Related Expenditure,Responsive Repairs & Maintenance,Greater Manchester Combined Authority ,36.41
FLAMEPRO GLOBAL LTD,10/01/2022,31104820,Premises Related Expenditure,Responsive Repairs & Maintenance,Greater Manchester Combined Authority ,152.04
FLUID BRANDING LIMITED,03/03/2022,31110803,"Supplies, Services & Other Expenses",Stationery,Greater Manchester Combined Authority ,92.3
FLUID BRANDING LIMITED,22/03/2022,31111043,"Supplies, Services & Other Expenses",Stationery,Greater Manchester Combined Authority ,131.16
FS.COM GBP,28/03/2022,31110991,Premises Related Expenditure,Responsive Repairs & Maintenance,Greater Manchester Combined Authority ,122
GAYNOR SPORTS LTD,24/03/2022,31108423,"Supplies, Services & Other Expenses",Subsistence,Greater Manchester Combined Authority ,16.37
GBP HMCC Securities Li,04/02/2022,31101521,Premises Related Expenditure,Ground Rent,Greater Manchester Combined Authority ,29.5
GENERATOR GURU PARTS A,03/03/2022,31111009,Transport Related Expenditure,Repairs and Maintenance - Transport,Greater Manchester Combined Authority ,19.58
GEORGE HILL OLDHAM LIM,18/01/2022,31108077,Premises Related Expenditure,Responsive Repairs & Maintenance,Greater Manchester Combined Authority ,113.06
GEORGE HILL OLDHAM LIM,18/01/2022,31108083,Premises Related Expenditure,Responsive Repairs & Maintenance,Greater Manchester Combined Authority ,248.4
GEORGE HILL OLDHAM LIM,18/01/2022,31108160,Premises Related Expenditure,Responsive Repairs & Maintenance,Greater Manchester Combined Authority ,191.23
GEORGE HILL OLDHAM LIM,01/02/2022,31108411,Premises Related Expenditure,Responsive Repairs & Maintenance,Greater Manchester Combined Authority ,248.4
GEORGE HILL OLDHAM LIM,01/02/2022,31108519,Premises Related Expenditure,Responsive Repairs & Maintenance,Greater Manchester Combined Authority ,166.54
GEORGE HILL OLDHAM LIM,01/02/2022,31108586,Premises Related Expenditure,Responsive Repairs & Maintenance,Greater Manchester Combined Authority ,149.04
GEORGE HILL OLDHAM LIM,01/02/2022,31108684,Premises Related Expenditure,Responsive Repairs & Maintenance,Greater Manchester Combined Authority ,247.49
GEORGE HILL OLDHAM LIM,01/02/2022,31108428,Premises Related Expenditure,Responsive Repairs & Maintenance,Greater Manchester Combined Authority ,77.74
GEORGE HILL OLDHAM LIM,01/02/2022,31108116,Premises Related Expenditure,Responsive Repairs & Maintenance,Greater Manchester Combined Authority ,33.12
GEORGE HILL OLDHAM LIM,01/02/2022,31108163,Premises Related Expenditure,Responsive Repairs & Maintenance,Greater Manchester Combined Authority ,14.69
GEORGE HILL OLDHAM LIM,01/02/2022,31108172,Premises Related Expenditure,Responsive Repairs & Maintenance,Greater Manchester Combined Authority ,157.62
GEORGE HILL OLDHAM LIM,03/02/2022,31104777,Premises Related Expenditure,Responsive Repairs & Maintenance,Greater Manchester Combined Authority ,95.75
GEORGE HILL OLDHAM LIM,03/02/2022,31104927,Premises Related Expenditure,Responsive Repairs & Maintenance,Greater Manchester Combined Authority ,53.5
GEORGE HILL OLDHAM LIM,10/03/2022,31110929,Premises Related Expenditure,Responsive Repairs & Maintenance,Greater Manchester Combined Authority ,36.41
GEORGE HILL OLDHAM LIM,10/03/2022,31111031,Premises Related Expenditure,Responsive Repairs & Maintenance,Greater Manchester Combined Authority ,14.69
GEORGE HILL OLDHAM LIM,18/03/2022,31112005,Premises Related Expenditure,Responsive Repairs & Maintenance,Greater Manchester Combined Authority ,109.62
GEORGE HILL OLDHAM LIM,18/03/2022,31112078,Premises Related Expenditure,Responsive Repairs & Maintenance,Greater Manchester Combined Authority ,199.84
GEORGE HILL OLDHAM LIM,18/03/2022,31112111,Premises Related Expenditure,Responsive Repairs & Maintenance,Greater Manchester Combined Authority ,12.9
GIBBS AND DANDY,01/02/2022,31108418,Premises Related Expenditure,Responsive Repairs & Maintenance,Greater Manchester Combined Authority ,54
GO INTERIORS,18/03/2022,31112148,Premises Related Expenditure,Responsive Repairs & Maintenance,Greater Manchester Combined Authority ,45.96
GREENVALLEY-JERRYCANS,21/01/2022,31108710,Transport Related Expenditure,Repairs and Maintenance - Transport,Greater Manchester Combined Authority ,301.9
GSPRODUCTS.CO.UK,27/01/2022,31108606,Transport Related Expenditure,Repairs and Maintenance - Transport,Greater Manchester Combined Authority ,75.97
HABERS WORLD,03/03/2022,31108504,"Supplies, Services & Other Expenses",Subsistence,Greater Manchester Combined Authority ,4.4
HALFORDS 0507,24/03/2022,31108433,"Supplies, Services & Other Expenses",Subsistence,Greater Manchester Combined Authority ,5.7
HALFORDS 0830,18/03/2022,31111978,Premises Related Expenditure,Responsive Repairs & Maintenance,Greater Manchester Combined Authority ,16.47
HARRY BATES LTD,01/02/2022,31108190,Premises Related Expenditure,Responsive Repairs & Maintenance,Greater Manchester Combined Authority ,17.4
Herefordshire Meats Lt,06/02/2022,31103250,"Supplies, Services & Other Expenses",Subsistence,Greater Manchester Combined Authority ,14.3
HIGHSPEEDTRAINING.CO.U,28/02/2022,31110828,Indirect Employee Allowances,Devolved Training,Greater Manchester Combined Authority ,36
HILTON MANCHESTER AIRP,17/03/2022,31108419,"Supplies, Services & Other Expenses",Subsistence,Greater Manchester Combined Authority ,5
HILTON MANCHESTER AIRP,22/03/2022,31108677,"Supplies, Services & Other Expenses",Subsistence,Greater Manchester Combined Authority ,5
HIRE AND SUPPLIES,03/03/2022,31110984,Transport Related Expenditure,Repairs and Maintenance - Transport,Greater Manchester Combined Authority ,-119.49
HIRE AND SUPPLIES,03/03/2022,31110995,Transport Related Expenditure,Repairs and Maintenance - Transport,Greater Manchester Combined Authority ,119.49
HOLIDAY INN EXPRES,11/03/2022,31108412,"Supplies, Services & Other Expenses",Fire Safety,Greater Manchester Combined Authority ,102.5
HOLLYWOOD BOWL,04/02/2022,31108643,"Supplies, Services & Other Expenses",Hospitality,Greater Manchester Combined Authority ,88
HOME BARGAINS,21/02/2022,31108170,Premises Related Expenditure,Responsive Repairs & Maintenance,Greater Manchester Combined Authority ,17.03
HOME BARGAINS,07/03/2022,31110944,Premises Related Expenditure,Responsive Repairs & Maintenance,Greater Manchester Combined Authority ,10.82
HOME BARGAINS,07/03/2022,31110965,Premises Related Expenditure,Responsive Repairs & Maintenance,Greater Manchester Combined Authority ,9.66
HOME BARGAINS,07/03/2022,31110999,Premises Related Expenditure,Responsive Repairs & Maintenance,Greater Manchester Combined Authority ,24.98
HOME BARGAINS,22/03/2022,31112133,Premises Related Expenditure,Responsive Repairs & Maintenance,Greater Manchester Combined Authority ,27.61
HOWDENS - LEIGH D676,28/03/2022,31112036,Premises Related Expenditure,Responsive Repairs & Maintenance,Greater Manchester Combined Authority ,127.78
HOWDENS - MANCHESTER D,01/02/2022,31108061,Premises Related Expenditure,Responsive Repairs & Maintenance,Greater Manchester Combined Authority ,140.29
HOWDENS - MANCHESTER D,01/02/2022,31108106,Premises Related Expenditure,Responsive Repairs & Maintenance,Greater Manchester Combined Authority ,19.18
HOWDENS - MANCHESTER D,01/02/2022,31108179,Premises Related Expenditure,Responsive Repairs & Maintenance,Greater Manchester Combined Authority ,-23.88
HTTPS://WWW.JPENNYLTD.,03/03/2022,31111028,Transport Related Expenditure,Repairs and Maintenance - Transport,Greater Manchester Combined Authority ,56.77
HUMBERSIDE TAILLIFTS,21/01/2022,31108573,Transport Related Expenditure,Repairs and Maintenance - Transport,Greater Manchester Combined Authority ,193.76
HUMBERSIDE TAILLIFTS,21/01/2022,31108535,Transport Related Expenditure,Repairs and Maintenance - Transport,Greater Manchester Combined Authority ,193.76
HUMBERSIDE TAILLIFTS,24/01/2022,31108150,Transport Related Expenditure,Repairs and Maintenance - Transport,Greater Manchester Combined Authority ,161.29
HUMBERSIDE TAILLIFTS,30/03/2022,31112084,Transport Related Expenditure,Repairs and Maintenance - Transport,Greater Manchester Combined Authority ,159.9
HUNTER.IO STARTER,31/03/2022,31111938,"Supplies, Services & Other Expenses",Computer Software,Greater Manchester Combined Authority ,300
IKEA LTD 186 MANCHESTE,06/02/2022,31104960,"Supplies, Services & Other Expenses",Kitchen Equipment,Greater Manchester Combined Authority ,12.5
INCHCAPE VOLKSWAGEN,24/01/2022,31108025,Transport Related Expenditure,Repairs and Maintenance - Transport,Greater Manchester Combined Authority ,523.7
ITSU 071 MANCHESTER,24/01/2022,31108049,"Supplies, Services & Other Expenses",Subsistence,Greater Manchester Combined Authority ,10.28
iZ  Subway  51128,04/02/2022,31103261,"Supplies, Services & Other Expenses",Subsistence,Greater Manchester Combined Authority ,103.21
JAMES COOKSON/STOCKPT/,01/02/2022,31108493,Premises Related Expenditure,Responsive Repairs & Maintenance,Greater Manchester Combined Authority ,15.91
JAMES COOKSON/STOCKPT/,01/02/2022,31108589,Premises Related Expenditure,Responsive Repairs & Maintenance,Greater Manchester Combined Authority ,68.17
JAMES COOKSON/STOCKPT/,01/02/2022,31108062,Premises Related Expenditure,Responsive Repairs & Maintenance,Greater Manchester Combined Authority ,3.4
JEWSON 4340,28/03/2022,31097804,Premises Related Expenditure,Fixtures & Fittings,Greater Manchester Combined Authority ,110.68
JEWSON 4340,28/03/2022,31097848,Premises Related Expenditure,Fixtures & Fittings,Greater Manchester Combined Authority ,358.55
JEWSON 4340,28/03/2022,31097922,Premises Related Expenditure,Fixtures & Fittings,Greater Manchester Combined Authority ,51.53
KEYWAYS SECURITY SYSTE,01/02/2022,31108663,Premises Related Expenditure,Responsive Repairs & Maintenance,Greater Manchester Combined Authority ,115
KEYWAYS SECURITY SYSTE,01/02/2022,31108696,Premises Related Expenditure,Responsive Repairs & Maintenance,Greater Manchester Combined Authority ,116.58
KEYWAYS SECURITY SYSTE,10/03/2022,31111058,Premises Related Expenditure,Responsive Repairs & Maintenance,Greater Manchester Combined Authority ,86.9
KIA MOTORS (UK) LT,03/03/2022,31110835,Transport Related Expenditure,Repairs and Maintenance - Transport,Greater Manchester Combined Authority ,385.31
KIA MOTORS (UK) LT,03/03/2022,31111073,Transport Related Expenditure,Repairs and Maintenance - Transport,Greater Manchester Combined Authority ,53.57
KRYSTAL-1246578,31/01/2022,31108053,"Supplies, Services & Other Expenses",Subscriptions,Greater Manchester Combined Authority ,47.96
KRYSTAL-1247172,31/01/2022,31108166,"Supplies, Services & Other Expenses",Subscriptions,Greater Manchester Combined Authority ,38.37
KRYSTAL-1247748,31/01/2022,31108095,"Supplies, Services & Other Expenses",Subscriptions,Greater Manchester Combined Authority ,9.59
KRYSTAL-1266577,03/03/2022,31111042,"Supplies, Services & Other Expenses",Computer Software,Greater Manchester Combined Authority ,9.59
KRYSTAL-1270177,03/03/2022,31110947,"Supplies, Services & Other Expenses",Computer Software,Greater Manchester Combined Authority ,9.59
KRYSTAL-1273057,03/03/2022,31110956,"Supplies, Services & Other Expenses",Computer Software,Greater Manchester Combined Authority ,14.39
KRYSTAL-1275831,03/03/2022,31110892,"Supplies, Services & Other Expenses",Computer Software,Greater Manchester Combined Authority ,9.59
KRYSTAL-1281805,03/03/2022,31111047,"Supplies, Services & Other Expenses",Computer Software,Greater Manchester Combined Authority ,33.57
KRYSTAL-1286903,22/03/2022,31111998,"Supplies, Services & Other Expenses",Computer Software,Greater Manchester Combined Authority ,14.39
KRYSTAL-1324560,22/03/2022,31112023,"Supplies, Services & Other Expenses",Computer Software,Greater Manchester Combined Authority ,23.98
L & S ENGINEERS LTD,24/01/2022,31108181,Transport Related Expenditure,Repairs and Maintenance - Transport,Greater Manchester Combined Authority ,19.26
L & S ENGINEERS LTD,03/03/2022,31110927,Transport Related Expenditure,Repairs and Maintenance - Transport,Greater Manchester Combined Authority ,12.24
L & S ENGINEERS LTD,03/03/2022,31111081,Transport Related Expenditure,Repairs and Maintenance - Transport,Greater Manchester Combined Authority ,20.94
LAKES HOT SPOT,24/03/2022,31108600,"Supplies, Services & Other Expenses",Subsistence,Greater Manchester Combined Authority ,56.5
LANCASHIRE HOSE & FITT,27/01/2022,31108609,Premises Related Expenditure,Responsive Repairs & Maintenance,Greater Manchester Combined Authority ,12.6
LANCASTER N/E COSTA,24/03/2022,31108452,"Supplies, Services & Other Expenses",Subsistence,Greater Manchester Combined Authority ,20.18
Leverne Roberts Cateri,24/03/2022,31101550,"Supplies, Services & Other Expenses",Subsistence,Greater Manchester Combined Authority ,35
LIDL GB BURY,03/02/2022,31108069,"Supplies, Services & Other Expenses",Subsistence,Greater Manchester Combined Authority ,46.78
LIDL GB BURY,03/02/2022,31108185,"Supplies, Services & Other Expenses",Subsistence,Greater Manchester Combined Authority ,6.77
LIDL GB BURY,03/02/2022,31108454,"Supplies, Services & Other Expenses",Subsistence,Greater Manchester Combined Authority ,25.49
LIDL GB BURY,03/02/2022,31108475,"Supplies, Services & Other Expenses",Subsistence,Greater Manchester Combined Authority ,23.7
LIDL GB BURY,03/02/2022,31108531,"Supplies, Services & Other Expenses",Subsistence,Greater Manchester Combined Authority ,38.79
LIDL GB BURY,03/02/2022,31108599,"Supplies, Services & Other Expenses",Subsistence,Greater Manchester Combined Authority ,16.18
LIDL GB BURY,03/02/2022,31108605,"Supplies, Services & Other Expenses",Subsistence,Greater Manchester Combined Authority ,14.74
LIDL GB BURY,03/02/2022,31108607,"Supplies, Services & Other Expenses",Subsistence,Greater Manchester Combined Authority ,13.79
LIDL GB BURY,04/03/2022,31111079,"Supplies, Services & Other Expenses",Subsistence,Greater Manchester Combined Authority ,20.53
LIDL GB BURY,04/03/2022,31110845,"Supplies, Services & Other Expenses",Subsistence,Greater Manchester Combined Authority ,19.81
LIDL GB BURY,04/03/2022,31110897,"Supplies, Services & Other Expenses",Subsistence,Greater Manchester Combined Authority ,15.37
LIDL GB BURY,04/03/2022,31110981,"Supplies, Services & Other Expenses",Subsistence,Greater Manchester Combined Authority ,8.02
LIDL GB BURY,04/03/2022,31111052,"Supplies, Services & Other Expenses",Subsistence,Greater Manchester Combined Authority ,30.09
LIDL GB LITTLEBOROUGH,05/01/2022,31103315,"Supplies, Services & Other Expenses",Subsistence,Greater Manchester Combined Authority ,11.88
LIGHT SHOP DIRECT LTD,31/01/2022,31108672,Premises Related Expenditure,Responsive Repairs & Maintenance,Greater Manchester Combined Authority ,218.55
LINKEDIN-633 9786486,31/01/2022,31108714,"Supplies, Services & Other Expenses",Subscriptions,Greater Manchester Combined Authority ,75.28
LINKEDIN-700 5526353,31/01/2022,31108661,"Supplies, Services & Other Expenses",Advertising,Greater Manchester Combined Authority ,14.72
LINKEDIN-704 2710123,31/01/2022,31108651,"Supplies, Services & Other Expenses",Advertising,Greater Manchester Combined Authority ,75.83
M6 TOLL,03/02/2022,31108451,Transport Related Expenditure,Officers Travel & Subsistence,Greater Manchester Combined Authority ,5
M6 TOLL,03/02/2022,31108702,Transport Related Expenditure,Officers Travel & Subsistence,Greater Manchester Combined Authority ,6.8
MACDONALD HOTELS MANCH,02/02/2022,31099559,"Supplies, Services & Other Expenses",Subsistence,Greater Manchester Combined Authority ,15
MACHINE MART LTD,18/03/2022,31112106,Premises Related Expenditure,Responsive Repairs & Maintenance,Greater Manchester Combined Authority ,47.98
MailChimp,26/01/2022,31099495,"Supplies, Services & Other Expenses",Computer Software,Greater Manchester Combined Authority ,7.41
MailChimp,26/01/2022,31099618,"Supplies, Services & Other Expenses",Computer Software,Greater Manchester Combined Authority ,8.89
MailChimp,26/01/2022,31099673,"Supplies, Services & Other Expenses",Computer Software,Greater Manchester Combined Authority ,123.62
MailChimp,31/01/2022,31108438,"Supplies, Services & Other Expenses",Subscriptions,Greater Manchester Combined Authority ,31.26
MailChimp,31/01/2022,31108549,"Supplies, Services & Other Expenses",Subscriptions,Greater Manchester Combined Authority ,9.01
MailChimp,31/01/2022,31108691,"Supplies, Services & Other Expenses",Subscriptions,Greater Manchester Combined Authority ,7.62
MailChimp,31/01/2022,31108041,"Supplies, Services & Other Expenses",Subscriptions,Greater Manchester Combined Authority ,100.57
MailChimp,31/01/2022,31108096,"Supplies, Services & Other Expenses",Subscriptions,Greater Manchester Combined Authority ,103.29
MailChimp,31/01/2022,31108103,"Supplies, Services & Other Expenses",Subscriptions,Greater Manchester Combined Authority ,127.38
MailChimp,31/01/2022,31108427,"Supplies, Services & Other Expenses",Subscriptions,Greater Manchester Combined Authority ,125.14
MailChimp,31/01/2022,31108132,"Supplies, Services & Other Expenses",Subscriptions,Greater Manchester Combined Authority ,30.75
MailChimp,31/01/2022,31108134,"Supplies, Services & Other Expenses",Subscriptions,Greater Manchester Combined Authority ,7.5
MailChimp,31/01/2022,31108105,"Supplies, Services & Other Expenses",Subscriptions,Greater Manchester Combined Authority ,9.15
MailChimp,03/02/2022,31108073,"Supplies, Services & Other Expenses",Digital,Greater Manchester Combined Authority ,19.86
MailChimp,03/02/2022,31108146,"Supplies, Services & Other Expenses",Digital,Greater Manchester Combined Authority ,19.35
MailChimp,03/02/2022,31101447,"Supplies, Services & Other Expenses",Computer Software,Greater Manchester Combined Authority ,123.35
MailChimp,03/02/2022,31101529,"Supplies, Services & Other Expenses",Computer Software,Greater Manchester Combined Authority ,7.4
MailChimp,03/02/2022,31101552,"Supplies, Services & Other Expenses",Computer Software,Greater Manchester Combined Authority ,8.88
MailChimp,03/02/2022,31104800,"Supplies, Services & Other Expenses",Computer Software,Greater Manchester Combined Authority ,7.33
MailChimp,03/02/2022,31104876,"Supplies, Services & Other Expenses",Computer Software,Greater Manchester Combined Authority ,7.31
MailChimp,03/02/2022,31108127,"Supplies, Services & Other Expenses",Computer Software,Greater Manchester Combined Authority ,7.63
MailChimp,03/02/2022,31108139,"Supplies, Services & Other Expenses",Computer Software,Greater Manchester Combined Authority ,47.49
MailChimp,03/02/2022,31108673,"Supplies, Services & Other Expenses",Computer Software,Greater Manchester Combined Authority ,7.51
MailChimp,04/02/2022,31108120,"Supplies, Services & Other Expenses",Computer Software,Greater Manchester Combined Authority ,9.14
MailChimp,04/02/2022,31108168,"Supplies, Services & Other Expenses",Computer Software,Greater Manchester Combined Authority ,9.37
MailChimp,16/02/2022,31108615,"Supplies, Services & Other Expenses",Computer Software,Greater Manchester Combined Authority ,46.9
MailChimp,01/03/2022,31110998,"Supplies, Services & Other Expenses",Computer Software,Greater Manchester Combined Authority ,46.05
MailChimp,03/03/2022,31110810,"Supplies, Services & Other Expenses",Subscriptions,Greater Manchester Combined Authority ,41.69
MailChimp,03/03/2022,31110856,"Supplies, Services & Other Expenses",Subscriptions,Greater Manchester Combined Authority ,123.51
MailChimp,03/03/2022,31110951,"Supplies, Services & Other Expenses",Subscriptions,Greater Manchester Combined Authority ,8.92
MailChimp,03/03/2022,31110982,"Supplies, Services & Other Expenses",Subscriptions,Greater Manchester Combined Authority ,8.21
MailChimp,03/03/2022,31111025,"Supplies, Services & Other Expenses",Subscriptions,Greater Manchester Combined Authority ,110.63
MailChimp,22/03/2022,31111932,"Supplies, Services & Other Expenses",Subscriptions,Greater Manchester Combined Authority ,114.36
MailChimp,22/03/2022,31111933,"Supplies, Services & Other Expenses",Subscriptions,Greater Manchester Combined Authority ,8.4
MailChimp,22/03/2022,31112009,"Supplies, Services & Other Expenses",Subscriptions,Greater Manchester Combined Authority ,9.8
MailChimp,22/03/2022,31112112,"Supplies, Services & Other Expenses",Subscriptions,Greater Manchester Combined Authority ,136.99
MailChimp,22/03/2022,31112085,"Supplies, Services & Other Expenses",Subscriptions,Greater Manchester Combined Authority ,18.98
MailChimp,22/03/2022,31112099,"Supplies, Services & Other Expenses",Subscriptions,Greater Manchester Combined Authority ,44.65
MailChimp,31/03/2022,31112056,"Supplies, Services & Other Expenses",Computer Software,Greater Manchester Combined Authority ,52.75
MAILCHIMP    MONTHLY,26/01/2022,31099541,"Supplies, Services & Other Expenses",Periodicals & Magazines,Greater Manchester Combined Authority ,66
MAJESTIC WINE,21/01/2022,31108596,"Supplies, Services & Other Expenses",Subsistence,Greater Manchester Combined Authority ,-204.4
MAJESTIC WINE,21/01/2022,31108410,"Supplies, Services & Other Expenses",Subsistence,Greater Manchester Combined Authority ,311.24
MAJESTIC WINE,03/02/2022,31101562,"Supplies, Services & Other Expenses",Subsistence,Greater Manchester Combined Authority ,120
MAJESTIC WINE,03/02/2022,31103454,"Supplies, Services & Other Expenses",Subsistence,Greater Manchester Combined Authority ,-120
MANCHESTER CC INTE,03/02/2022,31108449,"Supplies, Services & Other Expenses",Professional Fees,Greater Manchester Combined Authority ,90
MANCHESTER CITY COUNCI,21/01/2022,31097733,Transport Related Expenditure,Officers Travel & Subsistence,Greater Manchester Combined Authority ,9.5
MANCHESTER CITY COUNCI,18/02/2022,31104811,Transport Related Expenditure,Officers Travel & Subsistence,Greater Manchester Combined Authority ,6
MARKS&SPENCER PLC,24/01/2022,31108552,"Supplies, Services & Other Expenses",Uniform,Greater Manchester Combined Authority ,25
MARSHALL NORTHWEST,24/01/2022,31108040,Transport Related Expenditure,Repairs and Maintenance - Transport,Greater Manchester Combined Authority ,90.64
MCDONALDS,26/01/2022,31108024,"Supplies, Services & Other Expenses",Subsistence,Greater Manchester Combined Authority ,9.08
MCDONALDS,30/03/2022,31104801,"Supplies, Services & Other Expenses",Subsistence,Greater Manchester Combined Authority ,43.43
MCDONALDS 1202,28/03/2022,31111944,"Supplies, Services & Other Expenses",Subsistence,Greater Manchester Combined Authority ,16.15
MDS BATTERY LTD,24/01/2022,31108084,Transport Related Expenditure,Repairs and Maintenance - Transport,Greater Manchester Combined Authority ,529.4
MENTIMETER,03/03/2022,31111037,Indirect Employee Allowances,Training Course Fees,Greater Manchester Combined Authority ,91.18
MICHAELROUL,21/01/2022,31105051,Transport Related Expenditure,Repairs and Maintenance - Transport,Greater Manchester Combined Authority ,115.2
MOMENT,03/03/2022,31110939,"Supplies, Services & Other Expenses",Computer Hardware,Greater Manchester Combined Authority ,160.9
MONARCH SHELVING LTD,10/03/2022,31110990,Premises Related Expenditure,Responsive Repairs & Maintenance,Greater Manchester Combined Authority ,108
MORETON PARK HOTEL,03/02/2022,31103406,Indirect Employee Allowances,Training Course Fees,Greater Manchester Combined Authority ,500
Mouser Electronics,30/03/2022,31111985,Transport Related Expenditure,Repairs and Maintenance - Transport,Greater Manchester Combined Authority ,24.7
MURCO PARTINGTON SERVI,04/02/2022,31097671,Transport Related Expenditure,Fuel,Greater Manchester Combined Authority ,14.48
MUR-FIX LTD,18/01/2022,31108071,Premises Related Expenditure,Responsive Repairs & Maintenance,Greater Manchester Combined Authority ,33.58
MUR-FIX LTD,18/01/2022,31108080,Premises Related Expenditure,Responsive Repairs & Maintenance,Greater Manchester Combined Authority ,278.99
MUR-FIX LTD,18/01/2022,31108081,Premises Related Expenditure,Responsive Repairs & Maintenance,Greater Manchester Combined Authority ,117.55
MUR-FIX LTD,18/01/2022,31108098,Premises Related Expenditure,Responsive Repairs & Maintenance,Greater Manchester Combined Authority ,46.86
MUR-FIX LTD,01/02/2022,31108496,Premises Related Expenditure,Responsive Repairs & Maintenance,Greater Manchester Combined Authority ,9.79
MUR-FIX LTD,01/02/2022,31108544,Premises Related Expenditure,Responsive Repairs & Maintenance,Greater Manchester Combined Authority ,29.46
MUR-FIX LTD,01/02/2022,31108597,Premises Related Expenditure,Responsive Repairs & Maintenance,Greater Manchester Combined Authority ,69.07
MUR-FIX LTD,01/02/2022,31108630,Premises Related Expenditure,Responsive Repairs & Maintenance,Greater Manchester Combined Authority ,225.55
MUR-FIX LTD,01/02/2022,31108473,Premises Related Expenditure,Responsive Repairs & Maintenance,Greater Manchester Combined Authority ,12.94
MUR-FIX LTD,10/03/2022,31110855,Premises Related Expenditure,Responsive Repairs & Maintenance,Greater Manchester Combined Authority ,75.1
MUR-FIX LTD,10/03/2022,31110912,Premises Related Expenditure,Responsive Repairs & Maintenance,Greater Manchester Combined Authority ,37.16
MUR-FIX LTD,10/03/2022,31110932,Premises Related Expenditure,Responsive Repairs & Maintenance,Greater Manchester Combined Authority ,19.18
MUR-FIX LTD,10/03/2022,31110935,Premises Related Expenditure,Responsive Repairs & Maintenance,Greater Manchester Combined Authority ,124.16
MUR-FIX LTD,10/03/2022,31110949,Premises Related Expenditure,Responsive Repairs & Maintenance,Greater Manchester Combined Authority ,38.28
MUR-FIX LTD,10/03/2022,31111007,Premises Related Expenditure,Responsive Repairs & Maintenance,Greater Manchester Combined Authority ,177.41
MUR-FIX LTD,10/03/2022,31111065,Premises Related Expenditure,Responsive Repairs & Maintenance,Greater Manchester Combined Authority ,299.94
MUR-FIX LTD,18/03/2022,31112011,Premises Related Expenditure,Responsive Repairs & Maintenance,Greater Manchester Combined Authority ,99.55
MUSIC STORE profession,03/03/2022,31108545,"Supplies, Services & Other Expenses",Computer Hardware,Greater Manchester Combined Authority ,140
NATWEST BANK,03/02/2022,31108572,"Supplies, Services & Other Expenses",Subsistence,Greater Manchester Combined Authority ,5
NCP LIMITED,18/02/2022,31108479,Transport Related Expenditure,Officers Travel & Subsistence,Greater Manchester Combined Authority ,17.45
NCP MANCHESTER OXFFORD,22/03/2022,31108594,Transport Related Expenditure,Officers Travel & Subsistence,Greater Manchester Combined Authority ,7
NCP MANCHESTER SPINNIN,22/03/2022,31111067,Transport Related Expenditure,Officers Travel & Subsistence,Greater Manchester Combined Authority ,7.9
NCP SALFORD NEW BAILEY,24/01/2022,31108056,Transport Related Expenditure,Officers Travel & Subsistence,Greater Manchester Combined Authority ,10.95
O2 PREPAY TOP-UP,19/03/2022,31111991,"Supplies, Services & Other Expenses",Telephones,Greater Manchester Combined Authority ,30
OLYMPIC LOCKS & SAFEGU,03/02/2022,31104858,Premises Related Expenditure,Responsive Repairs & Maintenance,Greater Manchester Combined Authority ,24.24
OLYMPIC LOCKS & SAFEGU,03/02/2022,31104867,Premises Related Expenditure,Responsive Repairs & Maintenance,Greater Manchester Combined Authority ,11.41
ONE STOP 3119,02/02/2022,31099558,"Supplies, Services & Other Expenses",Subsistence,Greater Manchester Combined Authority ,7
PARCEL MONKEY 8585723,24/01/2022,31108067,"Supplies, Services & Other Expenses",Postage,Greater Manchester Combined Authority ,8.34
PARCEL MONKEY 8605509,03/03/2022,31110841,"Supplies, Services & Other Expenses",Postage,Greater Manchester Combined Authority ,8.34
PARCEL MONKEY 8605672,03/03/2022,31111063,"Supplies, Services & Other Expenses",Postage,Greater Manchester Combined Authority ,10.79
PARCEL MONKEY 8605698,03/03/2022,31110913,"Supplies, Services & Other Expenses",Postage,Greater Manchester Combined Authority ,10.79
PARCEL MONKEY 8630800,03/03/2022,31110923,"Supplies, Services & Other Expenses",Postage,Greater Manchester Combined Authority ,9.9
PARCEL MONKEY 8656783,03/03/2022,31110868,"Supplies, Services & Other Expenses",Postage,Greater Manchester Combined Authority ,9.83
PARCEL MONKEY 8685501,30/03/2022,31112127,"Supplies, Services & Other Expenses",Postage,Greater Manchester Combined Authority ,8.34
PARCEL MONKEY 8740349,30/03/2022,31112088,"Supplies, Services & Other Expenses",Postage,Greater Manchester Combined Authority ,22.56
PARKING FEE,31/03/2022,31108617,Transport Related Expenditure,Officers Travel & Subsistence,Greater Manchester Combined Authority ,1.7
PARKING FEE,31/03/2022,31108624,Transport Related Expenditure,Officers Travel & Subsistence,Greater Manchester Combined Authority ,1.2
PAUL�S TOOL EMPORIUM L,01/02/2022,31108528,Premises Related Expenditure,Responsive Repairs & Maintenance,Greater Manchester Combined Authority ,9
PAUL�S TOOL EMPORIUM L,07/03/2022,31110854,Premises Related Expenditure,Responsive Repairs & Maintenance,Greater Manchester Combined Authority ,10
PAUL�S TOOL EMPORIUM L,10/03/2022,31110857,Premises Related Expenditure,Responsive Repairs & Maintenance,Greater Manchester Combined Authority ,12
PAYPAL  ASPLISAFETY,21/01/2022,31103410,Transport Related Expenditure,Repairs and Maintenance - Transport,Greater Manchester Combined Authority ,72.72
PAYPAL  BIGDUGLIMIT BI,24/01/2022,31108199,Transport Related Expenditure,Repairs and Maintenance - Transport,Greater Manchester Combined Authority ,49.08
PAYPAL  CHECKFIRE,28/03/2022,31112001,Premises Related Expenditure,Responsive Repairs & Maintenance,Greater Manchester Combined Authority ,15.74
PAYPAL  CHROMETRADE,21/01/2022,31108511,Transport Related Expenditure,Repairs and Maintenance - Transport,Greater Manchester Combined Authority ,354.38
PERTONSTORE.COM LTD,03/02/2022,31104975,Premises Related Expenditure,Responsive Repairs & Maintenance,Greater Manchester Combined Authority ,78.36
PERTONSTORE.COM LTD,18/03/2022,31112110,Premises Related Expenditure,Responsive Repairs & Maintenance,Greater Manchester Combined Authority ,125.03
PLASTICWELDEQUIPME,13/02/2022,31108518,Transport Related Expenditure,Repairs and Maintenance - Transport,Greater Manchester Combined Authority ,177.46
POST OFFICE COUNTER,27/01/2022,31108497,"Supplies, Services & Other Expenses",Postage,Greater Manchester Combined Authority ,13.14
POST OFFICE COUNTER,02/02/2022,31108088,"Supplies, Services & Other Expenses",Stationery,Greater Manchester Combined Authority ,0.75
POST OFFICE COUNTER,03/03/2022,31110832,"Supplies, Services & Other Expenses",Postage,Greater Manchester Combined Authority ,1.29
POWER TOOL CENTRE,24/01/2022,31108102,Transport Related Expenditure,Repairs and Maintenance - Transport,Greater Manchester Combined Authority ,-58.93
POWER TOOL CENTRE,24/01/2022,31108175,Transport Related Expenditure,Repairs and Maintenance - Transport,Greater Manchester Combined Authority ,58.93
POWER TOOL CENTRE,24/01/2022,31108180,Transport Related Expenditure,Repairs and Maintenance - Transport,Greater Manchester Combined Authority ,83.88
PP JILLIANFITZ,01/03/2022,31110959,Transport Related Expenditure,Repairs and Maintenance - Transport,Greater Manchester Combined Authority ,79
Q PARK KNOWSLEY PLACE,21/03/2022,31111934,Transport Related Expenditure,Officers Travel & Subsistence,Greater Manchester Combined Authority ,6.5
RAC,23/02/2022,31108659,Transport Related Expenditure,Repairs and Maintenance - Transport,Greater Manchester Combined Authority ,495
REV.COM,03/03/2022,31110946,"Supplies, Services & Other Expenses",Computer Software,Greater Manchester Combined Authority ,414.76
ROCHDALE BOROUGH COUNC,27/01/2022,31108636,Premises Related Expenditure,Waste Site Programmed,Greater Manchester Combined Authority ,198
ROYAL YACHTING ASSOC,28/03/2022,31103249,Indirect Employee Allowances,Training Course Fees,Greater Manchester Combined Authority ,47
RS COMPONENTS,19/01/2022,31108022,Premises Related Expenditure,Responsive Repairs & Maintenance,Greater Manchester Combined Authority ,43.2
RS COMPONENTS,11/02/2022,31108648,Premises Related Expenditure,Responsive Repairs & Maintenance,Greater Manchester Combined Authority ,58.57
RS COMPONENTS,28/03/2022,31111088,Premises Related Expenditure,Responsive Repairs & Maintenance,Greater Manchester Combined Authority ,59.29
RUSLAND POOL HOTEL,24/03/2022,31108581,"Supplies, Services & Other Expenses",Subsistence,Greater Manchester Combined Authority ,54
S TAYLOR & SONS,18/03/2022,31111981,Premises Related Expenditure,Responsive Repairs & Maintenance,Greater Manchester Combined Authority ,68
S TAYLOR & SONS,18/03/2022,31112125,Premises Related Expenditure,Responsive Repairs & Maintenance,Greater Manchester Combined Authority ,4
SAINSBURYS SMKT,03/02/2022,31108671,"Supplies, Services & Other Expenses",Subsistence,Greater Manchester Combined Authority ,7.7
Salford_City_Parking,01/03/2022,31111008,Transport Related Expenditure,Officers Travel & Subsistence,Greater Manchester Combined Authority ,3
SANIFLO,18/03/2022,31111930,Premises Related Expenditure,Responsive Repairs & Maintenance,Greater Manchester Combined Authority ,53.83
Saving Zone,22/03/2022,31110963,Premises Related Expenditure,Responsive Repairs & Maintenance,Greater Manchester Combined Authority ,6.5
SCREWFIX DIR LTD,05/01/2022,31103497,Premises Related Expenditure,Responsive Repairs & Maintenance,Greater Manchester Combined Authority ,26.15
SCREWFIX DIR LTD,05/01/2022,31105030,Premises Related Expenditure,Responsive Repairs & Maintenance,Greater Manchester Combined Authority ,19.25
SCREWFIX DIR LTD,10/01/2022,31105054,Premises Related Expenditure,Responsive Repairs & Maintenance,Greater Manchester Combined Authority ,40.2
SCREWFIX DIR LTD,27/01/2022,31108620,Premises Related Expenditure,Waste Site Responsive,Greater Manchester Combined Authority ,140
SCREWFIX DIR LTD,27/01/2022,31108616,Premises Related Expenditure,Responsive Repairs & Maintenance,Greater Manchester Combined Authority ,1.24
SCREWFIX DIR LTD,27/01/2022,31108653,Premises Related Expenditure,Responsive Repairs & Maintenance,Greater Manchester Combined Authority ,32.45
SCREWFIX DIR LTD,01/02/2022,31108488,Premises Related Expenditure,Responsive Repairs & Maintenance,Greater Manchester Combined Authority ,44.94
SCREWFIX DIR LTD,01/02/2022,31108534,Premises Related Expenditure,Responsive Repairs & Maintenance,Greater Manchester Combined Authority ,12.37
SCREWFIX DIR LTD,01/02/2022,31108622,Premises Related Expenditure,Responsive Repairs & Maintenance,Greater Manchester Combined Authority ,16.47
SCREWFIX DIR LTD,01/02/2022,31108676,Premises Related Expenditure,Responsive Repairs & Maintenance,Greater Manchester Combined Authority ,20.88
SCREWFIX DIR LTD,03/02/2022,31104774,Premises Related Expenditure,Responsive Repairs & Maintenance,Greater Manchester Combined Authority ,64.09
SCREWFIX DIR LTD,03/02/2022,31104772,Premises Related Expenditure,Responsive Repairs & Maintenance,Greater Manchester Combined Authority ,66.73
SCREWFIX DIR LTD,10/03/2022,31110910,Premises Related Expenditure,Responsive Repairs & Maintenance,Greater Manchester Combined Authority ,47.37
SCREWFIX DIR LTD,10/03/2022,31111074,Premises Related Expenditure,Responsive Repairs & Maintenance,Greater Manchester Combined Authority ,33.31
SCREWFIX DIR LTD,18/03/2022,31111947,Premises Related Expenditure,Responsive Repairs & Maintenance,Greater Manchester Combined Authority ,-99.98
SCREWFIX DIR LTD,18/03/2022,31111980,Premises Related Expenditure,Responsive Repairs & Maintenance,Greater Manchester Combined Authority ,59.99
SCREWFIX DIR LTD,18/03/2022,31112022,Premises Related Expenditure,Responsive Repairs & Maintenance,Greater Manchester Combined Authority ,56.96
SCREWFIX DIR LTD,18/03/2022,31112068,Premises Related Expenditure,Responsive Repairs & Maintenance,Greater Manchester Combined Authority ,26.05
SCREWFIX DIR LTD,18/03/2022,31112097,Premises Related Expenditure,Responsive Repairs & Maintenance,Greater Manchester Combined Authority ,39.99
SCREWFIX DIR LTD,19/03/2022,31111986,Premises Related Expenditure,Waste Site Programmed,Greater Manchester Combined Authority ,66.97
SCREWFIX DIRECT,05/01/2022,31103509,Premises Related Expenditure,Responsive Repairs & Maintenance,Greater Manchester Combined Authority ,84.36
SCREWFIX DIRECT,05/01/2022,31104775,Premises Related Expenditure,Responsive Repairs & Maintenance,Greater Manchester Combined Authority ,31.49
SCREWFIX DIRECT,05/01/2022,31104807,Premises Related Expenditure,Responsive Repairs & Maintenance,Greater Manchester Combined Authority ,108.6
SCREWFIX DIRECT,05/01/2022,31104827,Premises Related Expenditure,Responsive Repairs & Maintenance,Greater Manchester Combined Authority ,4.86
SCREWFIX DIRECT,05/01/2022,31104900,Premises Related Expenditure,Responsive Repairs & Maintenance,Greater Manchester Combined Authority ,90.56
SCREWFIX DIRECT,05/01/2022,31104949,Premises Related Expenditure,Responsive Repairs & Maintenance,Greater Manchester Combined Authority ,5.49
SCREWFIX DIRECT,05/01/2022,31104955,Premises Related Expenditure,Responsive Repairs & Maintenance,Greater Manchester Combined Authority ,7.56
SCREWFIX DIRECT,05/01/2022,31105014,Premises Related Expenditure,Responsive Repairs & Maintenance,Greater Manchester Combined Authority ,16.5
SCREWFIX DIRECT,19/01/2022,31108144,Premises Related Expenditure,Responsive Repairs & Maintenance,Greater Manchester Combined Authority ,111.96
SCREWFIX DIRECT,24/01/2022,31108043,Premises Related Expenditure,Responsive Repairs & Maintenance,Greater Manchester Combined Authority ,56.77
SCREWFIX DIRECT,24/01/2022,31108416,Premises Related Expenditure,Responsive Repairs & Maintenance,Greater Manchester Combined Authority ,64.79
SCREWFIX DIRECT,24/01/2022,31108592,Premises Related Expenditure,Responsive Repairs & Maintenance,Greater Manchester Combined Authority ,48.77
SCREWFIX DIRECT,01/02/2022,31108499,Premises Related Expenditure,Responsive Repairs & Maintenance,Greater Manchester Combined Authority ,11.28
SCREWFIX DIRECT,01/02/2022,31108034,Premises Related Expenditure,Responsive Repairs & Maintenance,Greater Manchester Combined Authority ,9.98
SCREWFIX DIRECT,01/02/2022,31108434,Premises Related Expenditure,Responsive Repairs & Maintenance,Greater Manchester Combined Authority ,13.7
SCREWFIX DIRECT,01/02/2022,31108149,Premises Related Expenditure,Responsive Repairs & Maintenance,Greater Manchester Combined Authority ,10.47
SCREWFIX DIRECT,01/02/2022,31108161,Premises Related Expenditure,Responsive Repairs & Maintenance,Greater Manchester Combined Authority ,7.68
SCREWFIX DIRECT,01/02/2022,31108174,Premises Related Expenditure,Responsive Repairs & Maintenance,Greater Manchester Combined Authority ,24.38
SCREWFIX DIRECT,11/02/2022,31108640,Premises Related Expenditure,Responsive Repairs & Maintenance,Greater Manchester Combined Authority ,129.14
SCREWFIX DIRECT,07/03/2022,31110911,Premises Related Expenditure,Responsive Repairs & Maintenance,Greater Manchester Combined Authority ,79.75
SCREWFIX DIRECT,07/03/2022,31110918,Premises Related Expenditure,Responsive Repairs & Maintenance,Greater Manchester Combined Authority ,50.97
SCREWFIX DIRECT,07/03/2022,31110948,Premises Related Expenditure,Responsive Repairs & Maintenance,Greater Manchester Combined Authority ,76.48
SCREWFIX DIRECT,07/03/2022,31110977,Premises Related Expenditure,Responsive Repairs & Maintenance,Greater Manchester Combined Authority ,67.37
SCREWFIX DIRECT,07/03/2022,31110980,Premises Related Expenditure,Responsive Repairs & Maintenance,Greater Manchester Combined Authority ,82.99
SCREWFIX DIRECT,07/03/2022,31110985,Premises Related Expenditure,Responsive Repairs & Maintenance,Greater Manchester Combined Authority ,9.99
SCREWFIX DIRECT,07/03/2022,31111002,Premises Related Expenditure,Responsive Repairs & Maintenance,Greater Manchester Combined Authority ,40.45
SCREWFIX DIRECT,07/03/2022,31111006,Premises Related Expenditure,Responsive Repairs & Maintenance,Greater Manchester Combined Authority ,28.99
SCREWFIX DIRECT,07/03/2022,31111069,Premises Related Expenditure,Responsive Repairs & Maintenance,Greater Manchester Combined Authority ,72.01
SCREWFIX DIRECT,07/03/2022,31110796,Premises Related Expenditure,Responsive Repairs & Maintenance,Greater Manchester Combined Authority ,-50.97
SCREWFIX DIRECT,07/03/2022,31110823,Premises Related Expenditure,Responsive Repairs & Maintenance,Greater Manchester Combined Authority ,77.51
SCREWFIX DIRECT,07/03/2022,31110881,Premises Related Expenditure,Responsive Repairs & Maintenance,Greater Manchester Combined Authority ,85.09
SCREWFIX DIRECT,10/03/2022,31110889,Premises Related Expenditure,Responsive Repairs & Maintenance,Greater Manchester Combined Authority ,75
SCREWFIX DIRECT,10/03/2022,31111005,Premises Related Expenditure,Responsive Repairs & Maintenance,Greater Manchester Combined Authority ,11.99
SCREWFIX DIRECT,10/03/2022,31111044,Premises Related Expenditure,Responsive Repairs & Maintenance,Greater Manchester Combined Authority ,6.99
SCREWFIX DIRECT,18/03/2022,31111946,Premises Related Expenditure,Responsive Repairs & Maintenance,Greater Manchester Combined Authority ,99.98
SCREWFIX DIRECT,18/03/2022,31111948,Premises Related Expenditure,Responsive Repairs & Maintenance,Greater Manchester Combined Authority ,7.99
SCREWFIX DIRECT,18/03/2022,31112048,Premises Related Expenditure,Responsive Repairs & Maintenance,Greater Manchester Combined Authority ,61.48
SCREWFIX DIRECT,18/03/2022,31112072,Premises Related Expenditure,Responsive Repairs & Maintenance,Greater Manchester Combined Authority ,42.49
SCREWFIX DIRECT,22/03/2022,31111945,Premises Related Expenditure,Responsive Repairs & Maintenance,Greater Manchester Combined Authority ,8.06
SCREWFIX DIRECT,28/03/2022,31110931,Premises Related Expenditure,Responsive Repairs & Maintenance,Greater Manchester Combined Authority ,15.34
SCREWFIX DIRECT,28/03/2022,31110969,Premises Related Expenditure,Responsive Repairs & Maintenance,Greater Manchester Combined Authority ,26.47
SCREWFIX DIRECT,28/03/2022,31112141,Premises Related Expenditure,Responsive Repairs & Maintenance,Greater Manchester Combined Authority ,157.84
SELCO ASHTON MOSS,23/03/2022,31108660,"Supplies, Services & Other Expenses",Events,Greater Manchester Combined Authority ,271.4
SELCO BUILDERS WAREHOU,10/03/2022,31111021,Premises Related Expenditure,Responsive Repairs & Maintenance,Greater Manchester Combined Authority ,48.07
SELCO TRADING CTR,01/02/2022,31108508,Premises Related Expenditure,Responsive Repairs & Maintenance,Greater Manchester Combined Authority ,149.5
SELCO TRADING CTR,01/02/2022,31108569,Premises Related Expenditure,Responsive Repairs & Maintenance,Greater Manchester Combined Authority ,31.33
SELCO TRADING CTR,01/02/2022,31108613,Premises Related Expenditure,Responsive Repairs & Maintenance,Greater Manchester Combined Authority ,22.78
SELCO TRADING CTR,01/02/2022,31108632,Premises Related Expenditure,Responsive Repairs & Maintenance,Greater Manchester Combined Authority ,5.26
SELCO TRADING CTR,01/02/2022,31108018,Premises Related Expenditure,Responsive Repairs & Maintenance,Greater Manchester Combined Authority ,12.04
SELCO TRADING CTR,01/02/2022,31108021,Premises Related Expenditure,Responsive Repairs & Maintenance,Greater Manchester Combined Authority ,156.27
SELCO TRADING CTR,01/02/2022,31108712,Premises Related Expenditure,Responsive Repairs & Maintenance,Greater Manchester Combined Authority ,51.73
SELCO TRADING CTR,01/02/2022,31108435,Premises Related Expenditure,Responsive Repairs & Maintenance,Greater Manchester Combined Authority ,11.97
SELCO TRADING CTR,01/02/2022,31108197,Premises Related Expenditure,Responsive Repairs & Maintenance,Greater Manchester Combined Authority ,94.8
SELCO TRADING CTR,10/03/2022,31110860,Premises Related Expenditure,Responsive Repairs & Maintenance,Greater Manchester Combined Authority ,97.44
SELCO TRADING CTR,10/03/2022,31110930,Premises Related Expenditure,Responsive Repairs & Maintenance,Greater Manchester Combined Authority ,12.11
SELCO TRADING CTR,10/03/2022,31111086,Premises Related Expenditure,Responsive Repairs & Maintenance,Greater Manchester Combined Authority ,27.75
SELCO TRADING CTR,18/03/2022,31111987,Premises Related Expenditure,Responsive Repairs & Maintenance,Greater Manchester Combined Authority ,12.48
SELCO TRADING CTR,18/03/2022,31112013,Premises Related Expenditure,Responsive Repairs & Maintenance,Greater Manchester Combined Authority ,40.52
SELCO TRADING CTR,18/03/2022,31112041,Premises Related Expenditure,Responsive Repairs & Maintenance,Greater Manchester Combined Authority ,49.02
SELCO TRADING CTR,18/03/2022,31112071,Premises Related Expenditure,Responsive Repairs & Maintenance,Greater Manchester Combined Authority ,106.17
SELCO TRADING CTR,18/03/2022,31112153,Premises Related Expenditure,Responsive Repairs & Maintenance,Greater Manchester Combined Authority ,61.41
SGS,21/01/2022,31108455,Transport Related Expenditure,Repairs and Maintenance - Transport,Greater Manchester Combined Authority ,388.8
SGS,21/01/2022,31108458,Transport Related Expenditure,Repairs and Maintenance - Transport,Greater Manchester Combined Authority ,388.8
SHOP4ALL LTD,19/01/2022,31108115,Premises Related Expenditure,Responsive Repairs & Maintenance,Greater Manchester Combined Authority ,119.84
SLI DO,22/03/2022,31111999,"Supplies, Services & Other Expenses",Computer Software,Greater Manchester Combined Authority ,96
SLRHUT,19/01/2022,31108036,"Supplies, Services & Other Expenses",Subsistence,Greater Manchester Combined Authority ,"1,718.00"
SLRHUT,19/01/2022,31108072,"Supplies, Services & Other Expenses",Subsistence,Greater Manchester Combined Authority ,"1,729.00"
SMBC VENUES,22/03/2022,31110872,"Supplies, Services & Other Expenses",Room Hire,Greater Manchester Combined Authority ,40
SOUTHWAITE S/W COSTA,24/01/2022,31108559,"Supplies, Services & Other Expenses",Subsistence,Greater Manchester Combined Authority ,11.8
SP   HELIGUY.COM,25/02/2022,31110848,"Supplies, Services & Other Expenses",Operational Equipment Non-Consumables,Greater Manchester Combined Authority ,23
SP   MAGICSHOP.CO.UK,18/01/2022,31108046,"Supplies, Services & Other Expenses",Detection Identification and Monitoring,Greater Manchester Combined Authority ,15.99
SP   MCRARTGALLERYSHOP,03/02/2022,31108583,"Supplies, Services & Other Expenses",Hospitality,Greater Manchester Combined Authority ,89.95
SP   PIPEWORK SUPPLIER,27/01/2022,31108075,Transport Related Expenditure,Repairs and Maintenance - Transport,Greater Manchester Combined Authority ,20.88
SP   TOUGHOOK,18/03/2022,31111990,Premises Related Expenditure,Responsive Repairs & Maintenance,Greater Manchester Combined Authority ,79.55
SPOTHOST LIMITED,16/02/2022,31108551,"Supplies, Services & Other Expenses",Subsistence,Greater Manchester Combined Authority ,250
SQ  AB TAXIS,22/03/2022,31110964,Transport Related Expenditure,Officers Travel & Subsistence,Greater Manchester Combined Authority ,17
SQ  RAJ MAHAL FINE DIN,21/02/2022,31103319,"Supplies, Services & Other Expenses",Subsistence,Greater Manchester Combined Authority ,77.6
SQUARESPACE INC.,03/02/2022,31105033,"Supplies, Services & Other Expenses",Computer Software,Greater Manchester Combined Authority ,66.24
SQUARESPACE INC.,31/03/2022,31111960,"Supplies, Services & Other Expenses",Computer Software,Greater Manchester Combined Authority ,19.2
STAX TRADE CENTRES LTD,01/02/2022,31108467,Premises Related Expenditure,Responsive Repairs & Maintenance,Greater Manchester Combined Authority ,80.52
STAX TRADE CENTRES LTD,01/02/2022,31108483,Premises Related Expenditure,Responsive Repairs & Maintenance,Greater Manchester Combined Authority ,20.83
STAX TRADE CENTRES LTD,10/03/2022,31110820,Premises Related Expenditure,Responsive Repairs & Maintenance,Greater Manchester Combined Authority ,79.02
STORY BLOCKSAUDIO,31/01/2022,31108579,"Supplies, Services & Other Expenses",Subscriptions,Greater Manchester Combined Authority ,126.76
SUEZ SALFORD ROAD BIO,01/02/2022,31108633,Premises Related Expenditure,Responsive Repairs & Maintenance,Greater Manchester Combined Authority ,101.87
SUEZ SALFORD ROAD BIO,18/03/2022,31112105,Premises Related Expenditure,Responsive Repairs & Maintenance,Greater Manchester Combined Authority ,101.87
SumUp   Britannia Taxi,18/02/2022,31108509,Transport Related Expenditure,Officers Travel & Subsistence,Greater Manchester Combined Authority ,36.8
SumUp   Ouzzani - Taxi,16/02/2022,31108453,Transport Related Expenditure,Officers Travel & Subsistence,Greater Manchester Combined Authority ,50.33
SumUp   Standish taxis,18/02/2022,31108679,Transport Related Expenditure,Officers Travel & Subsistence,Greater Manchester Combined Authority ,33
SUPER POUND,05/01/2022,31103376,Premises Related Expenditure,Responsive Repairs & Maintenance,Greater Manchester Combined Authority ,8
SWANS TRAVEL LTD,16/02/2022,31108699,Transport Related Expenditure,Officers Travel & Subsistence,Greater Manchester Combined Authority ,275
TABAC MUTUALITE,16/02/2022,31108587,"Supplies, Services & Other Expenses",Subsistence,Greater Manchester Combined Authority ,54.47
TBWS WELDING SUPPLIES,30/03/2022,31112138,Transport Related Expenditure,Repairs and Maintenance - Transport,Greater Manchester Combined Authority ,354.42
TESCO PFS 3739,02/03/2022,31111017,Transport Related Expenditure,Fuel,Greater Manchester Combined Authority ,58.13
TESCO STORE 2744,01/02/2022,31108148,Premises Related Expenditure,Responsive Repairs & Maintenance,Greater Manchester Combined Authority ,30
TESCO STORE 3101,28/02/2022,31110904,"Supplies, Services & Other Expenses",Subsistence,Greater Manchester Combined Authority ,9.79
TESCO STORES 2142,24/01/2022,31108086,"Supplies, Services & Other Expenses",Subsistence,Greater Manchester Combined Authority ,5.8
TESCO STORES 2142,24/01/2022,31108704,"Supplies, Services & Other Expenses",Subsistence,Greater Manchester Combined Authority ,6.4
TESCO STORES 2142,01/02/2022,31108169,"Supplies, Services & Other Expenses",Subsistence,Greater Manchester Combined Authority ,14.2
TESCO STORES 3378,02/02/2022,31108536,"Supplies, Services & Other Expenses",Kitchen Equipment,Greater Manchester Combined Authority ,26.7
TESCO STORES 5194,28/03/2022,31108523,"Supplies, Services & Other Expenses",Subsistence,Greater Manchester Combined Authority ,16.86
TESCO STORES 5194,28/03/2022,31108539,"Supplies, Services & Other Expenses",Subsistence,Greater Manchester Combined Authority ,28.1
TESCO STORES 5194,28/03/2022,31111011,"Supplies, Services & Other Expenses",Subsistence,Greater Manchester Combined Authority ,12.5
TESCO STORES 5588,18/01/2022,31108048,"Supplies, Services & Other Expenses",Subsistence,Greater Manchester Combined Authority ,3.6
TESCO STORES-2142,24/01/2022,31108023,"Supplies, Services & Other Expenses",Subsistence,Greater Manchester Combined Authority ,17.08
TESCO-STORES-5907,31/03/2022,31112116,"Supplies, Services & Other Expenses",Subsistence,Greater Manchester Combined Authority ,10.95
TFL OYSTER AUTO TOPUP,21/01/2022,31108675,Transport Related Expenditure,Officers Travel & Subsistence,Greater Manchester Combined Authority ,20
TGI FRIDAY�S,27/01/2022,31108564,"Supplies, Services & Other Expenses",Subsistence,Greater Manchester Combined Authority ,12.5
THE BCI FORUM R/T,21/03/2022,31110909,"Supplies, Services & Other Expenses",Periodicals & Magazines,Greater Manchester Combined Authority ,132
The Food Hut,31/01/2022,31108674,"Supplies, Services & Other Expenses",Subsistence,Greater Manchester Combined Authority ,58.8
THE OLD BRIDGE HOT,10/01/2022,31104903,Indirect Employee Allowances,Other Training Expenses,Greater Manchester Combined Authority ,111
thetrainline.com,03/02/2022,31108429,Transport Related Expenditure,Officers Travel & Subsistence,Greater Manchester Combined Authority ,115.33
thetrainline.com,22/03/2022,31108658,Transport Related Expenditure,Officers Travel & Subsistence,Greater Manchester Combined Authority ,223.09
thetrainline.com,24/03/2022,31101484,Transport Related Expenditure,Officers Travel & Subsistence,Greater Manchester Combined Authority ,10.58
TILE MART LTD,05/01/2022,31103332,Premises Related Expenditure,Responsive Repairs & Maintenance,Greater Manchester Combined Authority ,129
TIMES NEWSPAPERS LTD,26/01/2022,31099457,"Supplies, Services & Other Expenses",Periodicals & Magazines,Greater Manchester Combined Authority ,26
TIMES NEWSPAPERS LTD,03/02/2022,31101520,"Supplies, Services & Other Expenses",Periodicals & Magazines,Greater Manchester Combined Authority ,26
TIMPSON LTD,06/02/2022,31108529,"Supplies, Services & Other Expenses",Stationery,Greater Manchester Combined Authority ,10
TIMPSON LTD,10/03/2022,31110829,Premises Related Expenditure,Responsive Repairs & Maintenance,Greater Manchester Combined Authority ,18
TOOLSTATION LIMITED,01/02/2022,31108422,Premises Related Expenditure,Responsive Repairs & Maintenance,Greater Manchester Combined Authority ,9.72
TOOLSTATION LIMITED,18/03/2022,31112045,Premises Related Expenditure,Responsive Repairs & Maintenance,Greater Manchester Combined Authority ,20.29
TOOLSTATION LIMITED,18/03/2022,31112093,Premises Related Expenditure,Responsive Repairs & Maintenance,Greater Manchester Combined Authority ,74.96
TOOLSTATION LTD,05/01/2022,31105031,Premises Related Expenditure,Responsive Repairs & Maintenance,Greater Manchester Combined Authority ,59.96
TOOLSTATION LTD,18/01/2022,31108020,Premises Related Expenditure,Responsive Repairs & Maintenance,Greater Manchester Combined Authority ,39.35
TOOLSTATION LTD,18/01/2022,31108068,Premises Related Expenditure,Responsive Repairs & Maintenance,Greater Manchester Combined Authority ,33.62
TOOLSTATION LTD,18/01/2022,31108108,Premises Related Expenditure,Responsive Repairs & Maintenance,Greater Manchester Combined Authority ,18.04
TOOLSTATION LTD,19/01/2022,31108157,Premises Related Expenditure,Responsive Repairs & Maintenance,Greater Manchester Combined Authority ,13.79
TOOLSTATION LTD,19/01/2022,31108177,Premises Related Expenditure,Responsive Repairs & Maintenance,Greater Manchester Combined Authority ,15.66
TOOLSTATION LTD,01/02/2022,31108533,Premises Related Expenditure,Responsive Repairs & Maintenance,Greater Manchester Combined Authority ,30.1
TOOLSTATION LTD,01/02/2022,31108548,Premises Related Expenditure,Responsive Repairs & Maintenance,Greater Manchester Combined Authority ,109.6
TOOLSTATION LTD,01/02/2022,31108612,Premises Related Expenditure,Responsive Repairs & Maintenance,Greater Manchester Combined Authority ,182.44
TOOLSTATION LTD,01/02/2022,31108047,Premises Related Expenditure,Responsive Repairs & Maintenance,Greater Manchester Combined Authority ,25.98
TOOLSTATION LTD,01/02/2022,31108425,Premises Related Expenditure,Responsive Repairs & Maintenance,Greater Manchester Combined Authority ,105.56
TOOLSTATION LTD,01/02/2022,31108471,Premises Related Expenditure,Responsive Repairs & Maintenance,Greater Manchester Combined Authority ,55.21
TOOLSTATION LTD,01/02/2022,31108112,Premises Related Expenditure,Responsive Repairs & Maintenance,Greater Manchester Combined Authority ,11.54
TOOLSTATION LTD,10/03/2022,31110844,Premises Related Expenditure,Responsive Repairs & Maintenance,Greater Manchester Combined Authority ,23.16
TOOLSTATION LTD,10/03/2022,31110852,Premises Related Expenditure,Responsive Repairs & Maintenance,Greater Manchester Combined Authority ,39.74
TOOLSTATION LTD,10/03/2022,31110865,Premises Related Expenditure,Responsive Repairs & Maintenance,Greater Manchester Combined Authority ,169.39
TOOLSTATION LTD,10/03/2022,31110885,Premises Related Expenditure,Responsive Repairs & Maintenance,Greater Manchester Combined Authority ,26.81
TOOLSTATION LTD,10/03/2022,31110893,Premises Related Expenditure,Responsive Repairs & Maintenance,Greater Manchester Combined Authority ,14.5
TOOLSTATION LTD,10/03/2022,31110955,Premises Related Expenditure,Responsive Repairs & Maintenance,Greater Manchester Combined Authority ,43.85
TOOLSTATION LTD,10/03/2022,31110960,Premises Related Expenditure,Responsive Repairs & Maintenance,Greater Manchester Combined Authority ,63.88
TOOLSTATION LTD,10/03/2022,31111013,Premises Related Expenditure,Responsive Repairs & Maintenance,Greater Manchester Combined Authority ,18.6
TOOLSTATION LTD,10/03/2022,31111030,Premises Related Expenditure,Responsive Repairs & Maintenance,Greater Manchester Combined Authority ,27.8
TOOLSTATION LTD,10/03/2022,31111039,Premises Related Expenditure,Responsive Repairs & Maintenance,Greater Manchester Combined Authority ,24.17
TOOLSTATION LTD,10/03/2022,31111057,Premises Related Expenditure,Responsive Repairs & Maintenance,Greater Manchester Combined Authority ,19.27
TOOLSTATION LTD,18/03/2022,31111936,Premises Related Expenditure,Responsive Repairs & Maintenance,Greater Manchester Combined Authority ,36.33
TOOLSTATION LTD,18/03/2022,31111955,Premises Related Expenditure,Responsive Repairs & Maintenance,Greater Manchester Combined Authority ,21.81
TOOLSTATION LTD,18/03/2022,31112010,Premises Related Expenditure,Responsive Repairs & Maintenance,Greater Manchester Combined Authority ,55.3
TOOLSTATION LTD,18/03/2022,31112014,Premises Related Expenditure,Responsive Repairs & Maintenance,Greater Manchester Combined Authority ,13.94
TOOLSTATION LTD,18/03/2022,31112021,Premises Related Expenditure,Responsive Repairs & Maintenance,Greater Manchester Combined Authority ,17.98
TOOLSTATION LTD,18/03/2022,31112121,Premises Related Expenditure,Responsive Repairs & Maintenance,Greater Manchester Combined Authority ,9.98
TOOLSTATION LTD,18/03/2022,31112136,Premises Related Expenditure,Responsive Repairs & Maintenance,Greater Manchester Combined Authority ,73.91
TOOLSTATION LTD,24/03/2022,31111962,Premises Related Expenditure,Responsive Repairs & Maintenance,Greater Manchester Combined Authority ,39.98
TOOLSTATION UK,05/01/2022,31103232,Premises Related Expenditure,Responsive Repairs & Maintenance,Greater Manchester Combined Authority ,16.33
TOOLSTATION UK,05/01/2022,31104863,Premises Related Expenditure,Responsive Repairs & Maintenance,Greater Manchester Combined Authority ,15.07
TOOLSTATION UK,05/01/2022,31104894,Premises Related Expenditure,Responsive Repairs & Maintenance,Greater Manchester Combined Authority ,45.49
TOOLSTATION UK,05/01/2022,31104982,Premises Related Expenditure,Responsive Repairs & Maintenance,Greater Manchester Combined Authority ,28.73
TOOLSTATION UK,24/01/2022,31108091,Premises Related Expenditure,Responsive Repairs & Maintenance,Greater Manchester Combined Authority ,57.98
TOOLSTATION UK,24/01/2022,31108445,Premises Related Expenditure,Responsive Repairs & Maintenance,Greater Manchester Combined Authority ,17.58
TOOLSTATION UK,07/03/2022,31111004,Premises Related Expenditure,Responsive Repairs & Maintenance,Greater Manchester Combined Authority ,17.68
TOOLSTATION UK,07/03/2022,31110878,Premises Related Expenditure,Responsive Repairs & Maintenance,Greater Manchester Combined Authority ,38.95
TOOLSTATION UK,10/03/2022,31110821,Premises Related Expenditure,Responsive Repairs & Maintenance,Greater Manchester Combined Authority ,69.98
TRAILERTEK LTD,13/02/2022,31108614,Transport Related Expenditure,Repairs and Maintenance - Transport,Greater Manchester Combined Authority ,69.99
TRAVIS PERKINS,01/02/2022,31108563,Premises Related Expenditure,Responsive Repairs & Maintenance,Greater Manchester Combined Authority ,54.24
TRAVIS PERKINS,01/02/2022,31108598,Premises Related Expenditure,Responsive Repairs & Maintenance,Greater Manchester Combined Authority ,-50.9
TRAVIS PERKINS,01/02/2022,31108031,Premises Related Expenditure,Responsive Repairs & Maintenance,Greater Manchester Combined Authority ,17.14
TRAVIS PERKINS,01/02/2022,31108063,Premises Related Expenditure,Responsive Repairs & Maintenance,Greater Manchester Combined Authority ,50.04
TRAVIS PERKINS,01/02/2022,31108078,Premises Related Expenditure,Responsive Repairs & Maintenance,Greater Manchester Combined Authority ,33.08
TRAVIS PERKINS,01/02/2022,31108099,Premises Related Expenditure,Responsive Repairs & Maintenance,Greater Manchester Combined Authority ,80.83
TRAVIS PERKINS,01/02/2022,31108153,Premises Related Expenditure,Responsive Repairs & Maintenance,Greater Manchester Combined Authority ,35.54
TRAVIS PERKINS,10/03/2022,31110839,Premises Related Expenditure,Responsive Repairs & Maintenance,Greater Manchester Combined Authority ,7.78
TRAVIS PERKINS,10/03/2022,31110952,Premises Related Expenditure,Responsive Repairs & Maintenance,Greater Manchester Combined Authority ,78.36
TRAVIS PERKINS,10/03/2022,31111080,Premises Related Expenditure,Responsive Repairs & Maintenance,Greater Manchester Combined Authority ,12.06
TRAVIS PERKINS,18/03/2022,31112038,Premises Related Expenditure,Responsive Repairs & Maintenance,Greater Manchester Combined Authority ,40.72
TRAVIS PERKINS,18/03/2022,31112043,Premises Related Expenditure,Responsive Repairs & Maintenance,Greater Manchester Combined Authority ,18.35
Twitter Online Ads,31/01/2022,31108526,"Supplies, Services & Other Expenses",Advertising,Greater Manchester Combined Authority ,24.5
Twitter Online Ads,31/01/2022,31108584,"Supplies, Services & Other Expenses",Advertising,Greater Manchester Combined Authority ,3.5
Twitter Online Ads,31/01/2022,31108708,"Supplies, Services & Other Expenses",Advertising,Greater Manchester Combined Authority ,20.22
UBER    TRIP,03/02/2022,31103506,Transport Related Expenditure,Officers Travel & Subsistence,Greater Manchester Combined Authority ,40.62
Udemy,19/01/2022,31108076,Indirect Employee Allowances,Other Training Expenses,Greater Manchester Combined Authority ,59.99
UNIVERSITY OF LANCASHI,27/01/2022,31104796,Transport Related Expenditure,Officers Travel & Subsistence,Greater Manchester Combined Authority ,4
UNIVERSITY OF LANCASHI,27/01/2022,31104852,Transport Related Expenditure,Officers Travel & Subsistence,Greater Manchester Combined Authority ,4
UNIVERSITY OF LANCASHI,27/01/2022,31104857,Transport Related Expenditure,Officers Travel & Subsistence,Greater Manchester Combined Authority ,4
UNIVERSITY OF LANCASHI,27/01/2022,31104879,Transport Related Expenditure,Officers Travel & Subsistence,Greater Manchester Combined Authority ,4
UNIVERSITY OF LANCASHI,27/01/2022,31104887,Transport Related Expenditure,Officers Travel & Subsistence,Greater Manchester Combined Authority ,4
UNIVERSITY OF LANCASHI,27/01/2022,31108156,Transport Related Expenditure,Officers Travel & Subsistence,Greater Manchester Combined Authority ,4
UNIVERSITY OF LANCASHI,27/01/2022,31108186,Transport Related Expenditure,Officers Travel & Subsistence,Greater Manchester Combined Authority ,4
UNIVERSITY OF LANCASHI,27/01/2022,31108191,Transport Related Expenditure,Officers Travel & Subsistence,Greater Manchester Combined Authority ,4
UNIVERSITY OF LANCASHI,27/01/2022,31104749,Transport Related Expenditure,Officers Travel & Subsistence,Greater Manchester Combined Authority ,4
UNIVERSITY OF LANCASHI,28/03/2022,31110807,Transport Related Expenditure,Officers Travel & Subsistence,Greater Manchester Combined Authority ,4
UNIVERSITY OF LANCASHI,28/03/2022,31110936,Transport Related Expenditure,Officers Travel & Subsistence,Greater Manchester Combined Authority ,4
UNIVERSITY OF LANCASHI,28/03/2022,31110966,Transport Related Expenditure,Officers Travel & Subsistence,Greater Manchester Combined Authority ,4
UNIVERSITY OF LANCASHI,28/03/2022,31111056,Transport Related Expenditure,Officers Travel & Subsistence,Greater Manchester Combined Authority ,4
UPS LTD SHIPPING FEES,30/03/2022,31112079,Transport Related Expenditure,Repairs and Maintenance - Transport,Greater Manchester Combined Authority ,193.37
UPS LTD SHIPPING FEES,30/03/2022,31105021,"Supplies, Services & Other Expenses",Postage,Greater Manchester Combined Authority ,699.49
Village Hotel Warringt,03/02/2022,31101368,"Supplies, Services & Other Expenses",Subsistence,Greater Manchester Combined Authority ,7.5
Village Hotel Warringt,03/02/2022,31101528,"Supplies, Services & Other Expenses",Subsistence,Greater Manchester Combined Authority ,15
Village Hotel Warringt,03/02/2022,31101542,"Supplies, Services & Other Expenses",Subsistence,Greater Manchester Combined Authority ,89.1
Village Hotel Warringt,14/03/2022,31097681,"Supplies, Services & Other Expenses",Subsistence,Greater Manchester Combined Authority ,177.5
VITAL PARTS LTD,03/03/2022,31110884,Transport Related Expenditure,Repairs and Maintenance - Transport,Greater Manchester Combined Authority ,20.3
VMS - ROADCHEF,24/01/2022,31108417,"Supplies, Services & Other Expenses",Subsistence,Greater Manchester Combined Authority ,9.79
VMS - ROADCHEF,06/02/2022,31103227,"Supplies, Services & Other Expenses",Subsistence,Greater Manchester Combined Authority ,6.49
W WING YIP (MANCHE,19/01/2022,31108111,"Supplies, Services & Other Expenses",Subsistence,Greater Manchester Combined Authority ,7.96
W WING YIP (MANCHE,16/03/2022,31108070,"Supplies, Services & Other Expenses",Subsistence,Greater Manchester Combined Authority ,11.4
W WING YIP (MANCHE,16/03/2022,31108159,"Supplies, Services & Other Expenses",Subsistence,Greater Manchester Combined Authority ,6.35
W WING YIP (MANCHE,16/03/2022,31108162,"Supplies, Services & Other Expenses",Subsistence,Greater Manchester Combined Authority ,6.35
W WING YIP (MANCHE,16/03/2022,31108570,"Supplies, Services & Other Expenses",Subsistence,Greater Manchester Combined Authority ,11
W WING YIP (MANCHE,16/03/2022,31108662,"Supplies, Services & Other Expenses",Subsistence,Greater Manchester Combined Authority ,31.23
WATERCOOLERSDIRECT.COM,18/03/2022,31112040,Premises Related Expenditure,Responsive Repairs & Maintenance,Greater Manchester Combined Authority ,383.87
WETRANSFER,03/02/2022,31105058,"Supplies, Services & Other Expenses",Computer Software,Greater Manchester Combined Authority ,104.98
WEX PHOTOGRAPHIC,31/01/2022,31108426,"Supplies, Services & Other Expenses",Computer Hardware,Greater Manchester Combined Authority ,782.99
WEX PHOTOGRAPHIC,31/01/2022,31108456,"Supplies, Services & Other Expenses",Computer Hardware,Greater Manchester Combined Authority ,29.9
WEX PHOTOGRAPHIC,03/03/2022,31108487,"Supplies, Services & Other Expenses",Computer Hardware,Greater Manchester Combined Authority ,62
WEX PHOTOGRAPHIC,03/03/2022,31108593,"Supplies, Services & Other Expenses",Computer Hardware,Greater Manchester Combined Authority ,356.95
WEX PHOTOGRAPHIC,03/03/2022,31108601,"Supplies, Services & Other Expenses",Computer Hardware,Greater Manchester Combined Authority ,54
WEX PHOTOGRAPHIC,03/03/2022,31108657,"Supplies, Services & Other Expenses",Computer Hardware,Greater Manchester Combined Authority ,547
WEX PHOTOGRAPHIC,03/03/2022,31108693,"Supplies, Services & Other Expenses",Computer Hardware,Greater Manchester Combined Authority ,127
WICKES CLIFTON,18/01/2022,31108082,Premises Related Expenditure,Responsive Repairs & Maintenance,Greater Manchester Combined Authority ,30.85
WICKES CLIFTON,01/02/2022,31108700,Premises Related Expenditure,Responsive Repairs & Maintenance,Greater Manchester Combined Authority ,17.98
WICKES CLIFTON,01/02/2022,31108141,Premises Related Expenditure,Responsive Repairs & Maintenance,Greater Manchester Combined Authority ,52
WICKES CLIFTON,03/02/2022,31104997,Premises Related Expenditure,Responsive Repairs & Maintenance,Greater Manchester Combined Authority ,35.48
WICKES CLIFTON,10/03/2022,31111055,Premises Related Expenditure,Responsive Repairs & Maintenance,Greater Manchester Combined Authority ,30.5
WICKES CLIFTON,18/03/2022,31112159,Premises Related Expenditure,Responsive Repairs & Maintenance,Greater Manchester Combined Authority ,7
WICKES CLIFTON,24/03/2022,31112029,Premises Related Expenditure,Responsive Repairs & Maintenance,Greater Manchester Combined Authority ,29
WICKES GLOSSOP,05/01/2022,31104814,Premises Related Expenditure,Responsive Repairs & Maintenance,Greater Manchester Combined Authority ,72.27
WICKES GLOSSOP,05/01/2022,31104946,Premises Related Expenditure,Responsive Repairs & Maintenance,Greater Manchester Combined Authority ,116.36
WICKES GLOSSOP,22/03/2022,31111952,Premises Related Expenditure,Responsive Repairs & Maintenance,Greater Manchester Combined Authority ,55.35
WICKES OLDHAM,05/01/2022,31104846,Premises Related Expenditure,Responsive Repairs & Maintenance,Greater Manchester Combined Authority ,3.71
WICKES STOCKPORT,07/03/2022,31110876,Premises Related Expenditure,Responsive Repairs & Maintenance,Greater Manchester Combined Authority ,24.75
WICKES STOCKPORT,07/03/2022,31110895,Premises Related Expenditure,Responsive Repairs & Maintenance,Greater Manchester Combined Authority ,31.32
WICKES STOCKPORT,22/03/2022,31111971,Premises Related Expenditure,Responsive Repairs & Maintenance,Greater Manchester Combined Authority ,65.88
WM MORRISONS STORE,03/03/2022,31108472,"Supplies, Services & Other Expenses",Subsistence,Greater Manchester Combined Authority ,2.2
WM MORRISONS STORE,16/03/2022,31111939,"Supplies, Services & Other Expenses",Stationery,Greater Manchester Combined Authority ,2.38
WORLDWIDE FOOD OLDHAM,05/01/2022,31103209,"Supplies, Services & Other Expenses",Subsistence,Greater Manchester Combined Authority ,23.49
WURTH UK LTD,10/03/2022,31110973,Premises Related Expenditure,Responsive Repairs & Maintenance,Greater Manchester Combined Authority ,46.76
WURTH UK LTD,18/03/2022,31112062,Premises Related Expenditure,Responsive Repairs & Maintenance,Greater Manchester Combined Authority ,24.07
WURTH UK LTD,18/03/2022,31112080,Premises Related Expenditure,Responsive Repairs & Maintenance,Greater Manchester Combined Authority ,18.1
WWW.ACCOUNTS@IIA.ORG.U,04/02/2022,31104995,Indirect Employee Allowances,Training Course Fees,Greater Manchester Combined Authority ,298.8
WWW.ALPKIT.COM,24/03/2022,31108495,"Supplies, Services & Other Expenses",Subsistence,Greater Manchester Combined Authority ,39.99
WWW.ALTECAUTOMOTIVE.CO,30/03/2022,31112033,Transport Related Expenditure,Repairs and Maintenance - Transport,Greater Manchester Combined Authority ,18.04
WWW.APEA.ORG.UK,31/03/2022,31111940,"Supplies, Services & Other Expenses",Periodicals & Magazines,Greater Manchester Combined Authority ,175
WWW.BERGER TOOLS.CO.UK,27/01/2022,31108039,Transport Related Expenditure,Repairs and Maintenance - Transport,Greater Manchester Combined Authority ,57.48
WWW.BERGER TOOLS.CO.UK,27/01/2022,31108664,Transport Related Expenditure,Repairs and Maintenance - Transport,Greater Manchester Combined Authority ,57.48
WWW.BNBHOST.CO.UK,04/02/2022,31104840,Transport Related Expenditure,Officers Travel & Subsistence,Greater Manchester Combined Authority ,220
WWW.BNBHOST.CO.UK,04/02/2022,31105064,Transport Related Expenditure,Officers Travel & Subsistence,Greater Manchester Combined Authority ,462
WWW.CATERKWIK.CO.UK,05/01/2022,31099464,Premises Related Expenditure,Responsive Repairs & Maintenance,Greater Manchester Combined Authority ,243.54
WWW.CATERKWIK.CO.UK,05/01/2022,31103275,Premises Related Expenditure,Responsive Repairs & Maintenance,Greater Manchester Combined Authority ,249.53
WWW.CATERKWIK.CO.UK,01/02/2022,31108121,Premises Related Expenditure,Responsive Repairs & Maintenance,Greater Manchester Combined Authority ,321.52
WWW.CATERKWIK.CO.UK,08/03/2022,31110898,Premises Related Expenditure,Responsive Repairs & Maintenance,Greater Manchester Combined Authority ,297.53
WWW.CATERKWIK.CO.UK,18/03/2022,31111949,Premises Related Expenditure,Responsive Repairs & Maintenance,Greater Manchester Combined Authority ,297.53
WWW.CGPBOOKS.CO.UK,02/02/2022,31108182,Indirect Employee Allowances,Other Training Expenses,Greater Manchester Combined Authority ,155.8
WWW.CIPS.ORG,22/03/2022,31108505,Indirect Employee Allowances,Devolved Training,Greater Manchester Combined Authority ,141
WWW.CONTROLACCOUNTS.CO,25/02/2022,31108667,"Supplies, Services & Other Expenses",Operational Equipment Non-Consumables,Greater Manchester Combined Authority ,69.63
WWW.CROSSBOWEDUCATION.,20/01/2022,31108446,"Supplies, Services & Other Expenses",Stationery,Greater Manchester Combined Authority ,28.72
WWW.ENGWELD.CO.UK,03/03/2022,31110824,Transport Related Expenditure,Repairs and Maintenance - Transport,Greater Manchester Combined Authority ,147.91
WWW.FIRESEALSDIRECT.CO,16/03/2022,31099462,Premises Related Expenditure,Responsive Repairs & Maintenance,Greater Manchester Combined Authority ,264
WWW.FIRESEALSDIRECT.CO,23/03/2022,31103257,Premises Related Expenditure,Responsive Repairs & Maintenance,Greater Manchester Combined Authority ,474.96
WWW.FIRESEALSDIRECT.CO,28/03/2022,31112035,Premises Related Expenditure,Responsive Repairs & Maintenance,Greater Manchester Combined Authority ,9.62
WWW.JOHNLEWIS.COM,24/01/2022,31108492,"Supplies, Services & Other Expenses",Uniform,Greater Manchester Combined Authority ,-20
WWW.KENTBEARINGS.COM,21/01/2022,31103251,Transport Related Expenditure,Repairs and Maintenance - Transport,Greater Manchester Combined Authority ,147.85
WWW.LETSRECYCLE.COM ,03/02/2022,31108619,Indirect Employee Allowances,Other Training Expenses,Greater Manchester Combined Authority ,196.8
WWW.LINCAT.CO.UK,18/03/2022,31112067,Premises Related Expenditure,Responsive Repairs & Maintenance,Greater Manchester Combined Authority ,65.5
WWW.LOCAL.GOV.UK,03/02/2022,31108611,"Supplies, Services & Other Expenses",Conference,Greater Manchester Combined Authority ,429.6
WWW.MAJESTIC.CO.UK,03/02/2022,31101571,"Supplies, Services & Other Expenses",Subsistence,Greater Manchester Combined Authority ,216.9
WWW.MOBILECENTRE.C,13/02/2022,31108566,Transport Related Expenditure,Repairs and Maintenance - Transport,Greater Manchester Combined Authority ,13.2
WWW.NISBETS.COM,02/03/2022,31105052,"Supplies, Services & Other Expenses",Kitchen Equipment,Greater Manchester Combined Authority ,114.26
WWW.PANELSYSTEMS.CO.UK,03/02/2022,31108189,Premises Related Expenditure,Responsive Repairs & Maintenance,Greater Manchester Combined Authority ,16.8
WWW.PLANNING.CO,04/03/2022,31110806,Premises Related Expenditure,Responsive Repairs & Maintenance,Greater Manchester Combined Authority ,124
WWW.PLANNING.CO,24/03/2022,31103510,Premises Related Expenditure,Programmed Repairs & Maintenance,Greater Manchester Combined Authority ,262
WWW.POLYMAX.CO.UK,27/01/2022,31108193,Transport Related Expenditure,Repairs and Maintenance - Transport,Greater Manchester Combined Authority ,64.68
WWW.RANDOXHEALTH.COM,03/02/2022,31108649,"Supplies, Services & Other Expenses",Subsistence,Greater Manchester Combined Authority ,94.75
WWW.SCREWFIX.COM,07/03/2022,31111066,Premises Related Expenditure,Responsive Repairs & Maintenance,Greater Manchester Combined Authority ,17.94
WWW.SCREWFIX.COM,18/03/2022,31112060,Premises Related Expenditure,Responsive Repairs & Maintenance,Greater Manchester Combined Authority ,29.98
WWW.SCREWFIX.COM,22/03/2022,31112104,Premises Related Expenditure,Responsive Repairs & Maintenance,Greater Manchester Combined Authority ,6.48
WWW.SCREWFIX.COM,22/03/2022,31112120,Premises Related Expenditure,Responsive Repairs & Maintenance,Greater Manchester Combined Authority ,11.79
WWW.SCREWFIX.COM,28/03/2022,31112039,Premises Related Expenditure,Responsive Repairs & Maintenance,Greater Manchester Combined Authority ,55.74
WWW.SHOP4GROUP.CO.UK,24/01/2022,31108138,Transport Related Expenditure,Repairs and Maintenance - Transport,Greater Manchester Combined Authority ,54.11
WWW.SHOWCOMMS.CO.UK,31/01/2022,31105039,"Supplies, Services & Other Expenses",Computer Hardware,Greater Manchester Combined Authority ,70.44
WWW.SILVERSTONEFACTORS,03/03/2022,31111019,Transport Related Expenditure,Repairs and Maintenance - Transport,Greater Manchester Combined Authority ,27.46
WWW.UKELECTRIC.CO.UK,28/03/2022,31112054,Premises Related Expenditure,Responsive Repairs & Maintenance,Greater Manchester Combined Authority ,21.24
ZA ZA BAZAAR,04/02/2022,31104785,"Supplies, Services & Other Expenses",Subsistence,Greater Manchester Combined Authority ,53.97
ZOOM.US 888-799-9666,03/02/2022,31104974,"Supplies, Services & Other Expenses",Telephones,Greater Manchester Combined Authority ,62.39
ZOOM.US 888-799-9666,03/02/2022,31108060,"Supplies, Services & Other Expenses",Telephones,Greater Manchester Combined Authority ,62.39
ZOOM.US 888-799-9666,16/02/2022,31108656,"Supplies, Services & Other Expenses",Telephones,Greater Manchester Combined Authority ,62.39
ZOOM.US 888-799-9666,01/03/2022,31110826,"Supplies, Services & Other Expenses",Telephones,Greater Manchester Combined Authority ,62.39
ZOOM.US 888-799-9666,22/03/2022,31112034,"Supplies, Services & Other Expenses",Computer Software,Greater Manchester Combined Authority ,11.99
ZORO UK,21/01/2022,31104776,Transport Related Expenditure,Repairs and Maintenance - Transport,Greater Manchester Combined Authority ,111.98
ZTL The Bakehouse Born,24/03/2022,31108639,"Supplies, Services & Other Expenses",Subsistence,Greater Manchester Combined Authority ,73.75
